{"text_format":"1","workbook":"xlsx","n_sheets":14,"sheets":["CSV-INPUT","Landing","FrontPage","DataQuality","Diagnosis1","Diagnosis2","DiagReport","Inputs","Calculations","Diagnosis","Initial Design","3Reports","Glossary","Further Reading"],"not_rendered":{"charts":0,"images":24,"macros":1,"external_links":0,"defined_names":107,"comments":2,"pivot_tables":0},"unopened":[],"bounds":{"document_bytes":16777216,"sheet_cells":100000,"rows_first":2000,"rows_last":500,"rows_between":2000,"halvings":0,"cell_chars":16384,"cell_head_chars":4096},"cells_cut":0,"cells_raw":0,"read":"whole","date_system":"1900"}

{"sheet":"CSV-INPUT","index":0,"n_rows":47,"n_cols":7,"rows_kept":47,"cut":false,"hidden":false,"merged":[]}
["Quarter Dates:","2020-12-31","2020-09-30","2020-06-30","2020-03-31","2019-12-31","2019-09-30"]
["No. Recordings",0,0,0,2,1,0]
["All Milking Animals (Lact No. >=1)"]
["SCC Parameters"]
["BMSCC ('000 cells/ml)",null,null,null,85,211]
["% Chronic",null,null,null,7.6,0]
["% >200K",null,null,null,10.1,22.8]
["Lactation New IMI(%)",null,null,null,5.6,22.4]
["Dry Period New IMI(%)",null,null,null,0,23.1]
["'Apparent' Dry Period Cure(%)",null,null,null,0,75]
["Clinical Mastitis Parameters"]
["Dry Period Origin CM Rate (in 12)",0.41,0.27,0,0,0.27,0.17]
["Lactating Period Origin CM Rate (in 12)",2.76,0,0,0.52,2.02,2.66]
["Qrt CMIR (/100 cows/year)",35,6,0,13,26,15]
["Cow CMIR (/100 cows/year)",35,6,0,13,26,15]
["Clinical Mastitis Cure Rate (1st Case)",9,19,19,3,3,2]
["No. Calved",85,201,0,0,69,209]
["All Cows (Lact No. > 1)"]
["SCC Parameters"]
["BMSCC ('000 cells/ml)",null,null,null,99,245]
["% Chronic",null,null,null,10,0]
["% >200K",null,null,null,13.1,28]
["Lactation New IMI(%)",null,null,null,7.5,27.9]
["Dry Period New IMI(%)",null,null,null,0,28.6]
["'Apparent' Dry Period Cure(%)",null,null,null,0,75]
["Clinical Mastitis Parameters"]
["Dry Period Origin CM Rate (in 12)",0.33,0.18,0,0,0.27,0.17]
["Lactating Period Origin CM Rate (in 12)",2.59,0,0,0.52,2.02,2.66]
["Qrt CMIR (/100 cows/year)",32,5,0,13,26,15]
["Cow CMIR (/100 cows/year)",32,5,0,13,26,15]
["Clinical Mastitis Cure Rate (1st Case)",10,20,19,3,3,2]
["No. Calved",66,137,0,0,59,154]
["All Heifers (Lact No. = 1)"]
["SCC Parameters"]
["BMSCC ('000 cells/ml)",null,null,null,28,65]
["% Chronic",null,null,null,0,0]
["% >200K",null,null,null,0.5,6.2]
["Lactation New IMI(%)",null,null,null,0.8,4.7]
["Dry Period New IMI(%)",null,null,null,0,16.7]
["'Apparent' Dry Period Cure(%)",null,null,null,0,0]
["Clinical Mastitis Parameters"]
["Dry Period Origin CM Rate (in 12)",0.08,0.09,0,0,0,0]
["Lactating Period Origin CM Rate (in 12)",0.16,0,0,0,0,0]
["Qrt CMIR (/100 cows/year)",3,2,0,0,0,0]
["Cow CMIR (/100 cows/year)",3,2,0,0,0,0]
["Clinical Mastitis Cure Rate (1st Case)",0,0,0,4,4,4]
["No. Calved",19,64,0,0,10,55]

{"sheet":"Landing","index":1,"n_rows":11,"n_cols":3,"rows_kept":11,"cut":false,"hidden":false,"merged":[]}
[]
[null,"Mastitis Control Plan Herd Pattern Analysis Tool"]
[]
[]
[]
[]
[null,null,"This tool relies on macros for functionality. If you are seeing this screen then"]
[null,null,"macros are currently disabled. For most versions of Excel, you'll see a button"]
[null,null,"labelled \"Enable content\" in the yellow toolbar above. Click this to continue."]
[null,null,"Alternatively, you may need to close then reopen the spreadsheet and choose"]
[null,null,"\"Enable macros\" during opening."]

{"sheet":"FrontPage","index":2,"n_rows":31,"n_cols":10,"rows_kept":31,"cut":false,"hidden":false,"merged":[[4,1,9,1],[10,1,14,1]]}
[]
[null,"Herd Pattern Analysis Tool",null,null,null,null,null,null,"V2.1"]
["Farm ID"]
[null,null,"All cows - lactations 1+","Qtr  0","Qtr  -1","Qtr  -2","Qtr  -3","Qtr  -4","Qtr  -5","Target"]
[null,"SCC","BMSCC (,000 cells/ml)"]
[null,null,"% Chronic",null,null,null,null,null,null,"<5"]
[null,null,"% >200K",null,null,null,null,null,null,"<20"]
[null,null,"Lactation New IMI (%)",null,null,null,null,null,null,"<5"]
[null,null,"Dry Period New IMI (%)",null,null,null,null,null,null,"<10"]
[null,null,"'Apparent' Dry Period Cure (%)",null,null,null,null,null,null,">85"]
[null,"Mastitis","Dry Period Origin CM Rate  (in 12)",null,null,null,null,null,null,"<1"]
[null,null,"Lactating Period Origin CM Rate  (in 12)",null,null,null,null,null,null,"<2"]
[null,null,"Qrt CMIR (/100 cows/year)",null,null,null,null,null,null,"<25"]
[null,null,"Cow CMIR (/100 cows/year)",null,null,null,null,null,null,"<30"]
[null,null,"Clinical Mastitis Cure Rate (1st Case)"]
[null,null,"Heifers - lactation 1 only"]
[null,null,"Dry period new IMI (%)",null,null,null,null,null,null,"<10"]
[null,null,"Dry Period Origin CM Rate  (in 12)",null,null,null,null,null,null,"<1"]
[null,null,null,"BMSCC ","Bulk Milk Somatic Cell Count (CALCULATED from cow SCCs and yields)"]
[null,null,null,"IMI","Intramammary infections",null,null,"CM Clinical mastitis"]
[null,null,null,"CMIR","Clinical mastitis infection rate"]
[]
[]
[]
[]
[]
[]
[]
[]
[null,null,null,-1,{"$f":"D30-3","v":-4},{"$f":"E30-3","v":-7},-10,-13]
[null,null,null,-3,-6,-9,-12,-15]

{"sheet":"DataQuality","index":3,"n_rows":40,"n_cols":17,"rows_kept":40,"cut":false,"hidden":false,"merged":[[4,1,9,1],[10,1,14,1]]}
[]
[null,"Herd Pattern Analysis Tool"]
[null,"Farm ID",{"$f":"IF(FrontPage!C3<>\"\",FrontPage!C3,\"\")","v":""}]
[null,null,null,{"$f":"'CSV-INPUT'!B1","v":"2020-12-31"},{"$f":"'CSV-INPUT'!C1","v":"2020-09-30"},{"$f":"'CSV-INPUT'!D1","v":"2020-06-30"},{"$f":"'CSV-INPUT'!E1","v":"2020-03-31"},{"$f":"'CSV-INPUT'!F1","v":"2019-12-31"},{"$f":"'CSV-INPUT'!G1","v":"2019-09-30"}]
[null,null,"Data Quality Assessment","Qtr  0","Qtr  -1","Qtr  -2","Qtr  -3","Qtr  -4","Qtr  -5"]
[null,null,"Number of Recordings",null,null,null,null,null,null,null,null,null,null,null,null,null,{"$f":"IF(OR(D6=0,E6=0,F6=0,G6=0,H6=0,I6=0),1,IF(OR(D6<2,E6<2,F6<2,G6<2,H6<2,I6<2),1,2))","v":1}]
[null,null,"Number of Calvings (All Cows)",null,null,null,null,null,null,null,null,null,null,null,null,null,{"$f":"IF(OR(D7<10,E7<10,F7<10,G7<10,H7<10,I7<10),0,IF(OR(D7<20,E7<20,F7<20,G7<20,H7<20,I7<20),1,2))","v":0}]
[null,null,"Number of Calvings (Heifers)",null,null,null,null,null,null,null,null,null,null,null,null,null,{"$f":"IF(OR(D8<10,E8<10,F8<10,G8<10,H8<10,I8<10),0,IF(OR(D8<20,E8<20,F8<20,G8<20,H8<20,I8<20),1,2))","v":0}]
[null,null,"Incidence Rate of Clinical Mastitis",null,null,null,null,null,null,null,null,null,null,null,null,null,{"$f":"IF(OR(D9<5,E9<5,F9<5,G9<5,H9<5,I9<5),0,IF(OR(D9<20,E9<20,F9<20,G9<20,H9<20,I9<20),1,2))","v":0}]
[null,null,"(cases/100 cows/year equivalent)",null,null,null,null,null,null,null,null,null,null,null,null,null,{"$f":"MAX(Q6:Q9)","v":1}]
[null,null,"Somatic Cell Count Data",{"$f":"IF(OR(D6=0,E6=0,F6=0,G6=0,H6=0,I6=0),\"Insufficient SCC data for robust interpretation\",IF(OR(D6<2,E6<2,F6<2,G6<2,H6<2,I6<2),\"Interpret SCC data with care\",\"Adequate SCC data available\"))","v":"Insufficient SCC data for robust interpretation"}]
[null,null,"Number of Calvings (All Cows)",{"$f":"IF(OR(D7<10,E7<10,F7<10,G7<10,H7<10,I7<10),\"Low numbers of cows calving - interpret with great care\",IF(OR(D7<20,E7<20,F7<20,G7<20,H7<20,I7<20),\"Low numbers of cows calving - interpret with care\",\"Sufficient cows calving for robust interpretation\"))","v":"Low numbers of cows calving - interpret with great care"}]
[null,null,"Number of Calvings (Heifers)",{"$f":"IF(OR(D8<10,E8<10,F8<10,G8<10,H8<10,I8<10),\"Low numbers of heifers calving - interpret with great care\",IF(OR(D8<20,E8<20,F8<20,G8<20,H8<20,I8<20),\"Low numbers of heifers calving - interpret with care\",\"Sufficient heifers calving for robust interpretation\"))","v":"Low numbers of heifers calving - interpret with great care"}]
[null,null,"Clinical Mastitis Data",{"$f":"IF(OR(D9<5,E9<5,F9<5,G9<5,H9<5,I9<5),\"Insufficient data for robust interpretation\",IF(OR(D9<20,E9<20,F9<20,G9<20,H9<20,I9<20),\"Interpret data with care\",\"Adequate data available\"))","v":"Insufficient data for robust interpretation"}]
[]
[null,null,null,{"$f":"IF(OR(FrontPage!D5=0,FrontPage!E5=0,FrontPage!F5=0,FrontPage!G5=0,FrontPage!H5=0,FrontPage!I5=0),\"BULK MILK SCC VALUE(S) REQUIRED\",\"\")","v":"BULK MILK SCC VALUE(S) REQUIRED"}]
[]
[]
[]
[]
[]
[]
[]
[]
[]
[]
[]
[]
[]
[]
[]
[]
[]
[]
[]
[]
[]
[null,null,null,{"$f":"EOMONTH(TODAY(),D40)","v":"2021-12-31"},{"$f":"EOMONTH(TODAY(),E40)","v":"2021-09-30"},"2021-06-30","2021-03-31","2020-12-31","2020-09-30"]
[null,null,null,-1,{"$f":"D39-3","v":-4},{"$f":"E39-3","v":-7},-10,-13,-16]
[null,null,null,-3,-6,-9,-12,-15,-18]

{"sheet":"Diagnosis1","index":4,"n_rows":64,"n_cols":18,"rows_kept":64,"cut":false,"hidden":false,"merged":[[5,3,5,4],[5,5,5,6],[5,7,5,8],[5,9,5,10]]}
[]
[null,"Herd Pattern Analysis Tool"]
[null,"Farm ID",{"$f":"IF(FrontPage!C3<>\"\",FrontPage!C3,\"\")","v":""}]
[null,null,"Analysis from"]
[null,null,{"$f":"'CSV-INPUT'!B1","v":"2020-12-31"},null,"Last 3 months",null,"Last 12 months",null,"12 - 18 months ago",null,null,null,"Useful links"]
[null,null,null,"Current",null,"Recent",null,"Historic",null,"Seasonality"]
[null,null,"Contagious",{"$f":"ROUND(D60,0)","v":0},{"$f":"D7","v":0},{"$f":"ROUND(E60,0)","v":0},{"$f":"F7","v":0},{"$f":"F60","v":0},{"$f":"H7","v":0},{"$f":"G60","v":0},{"$f":"J7","v":0},null,"QuarterPRO Website"]
[null,null,"Environmental Dry Period",{"$f":"ROUND(D61,0)","v":0},{"$f":"D8","v":0},{"$f":"ROUND(E61,0)","v":0},0,{"$f":"F61","v":0},{"$f":"H8","v":0},{"$f":"G61","v":0},{"$f":"J8","v":0}]
[null,null,"Environmental Lactation",{"$f":"ROUND(D62,0)","v":0},0,{"$f":"ROUND(E62,0)","v":0},0,{"$f":"F62","v":0},{"$f":"H9","v":0},{"$f":"G62","v":0},{"$f":"J9","v":0},null,"Mastitis Control Plan"]
[null,null,"Specific Heifer Management",{"$f":"ROUND(D63,0)","v":0},0,{"$f":"ROUND(E63,0)","v":0},0,{"$f":"F63","v":0},{"$f":"H10","v":0},{"$f":"G63","v":0},{"$f":"J10","v":0}]
[null,null,"Clinical Mastitis Recurrence",{"$f":"IF(D64=\"NO DATA\",\"NO DATA\",ROUND(D64,0))","v":"NO DATA"},"NO DATA",{"$f":"IF(E64=\"NO DATA\",\"NO DATA\",ROUND(E64,0))","v":"NO DATA"},"NO DATA",{"$f":"IF(F64=\"NO DATA\",\"NO DATA\",ROUND(F64,0))","v":"NO DATA"},{"$f":"H11","v":"NO DATA"},null,null,null,"Mastitis Cost Calculator"]
[null,null,null,"Numbers indicate the relative importance of different patterns on a scale of 1 to 100"]
[null,null,"Click for more info"]
[null,null,"Key points",{"$f":"\"Predominant current issue\" & IF(O46=2,\"s are \",\" is \") & C46","v":"Predominant current issues are contagious, EL and EDP"},null,null,null,null,null,null,{"$f":"IF(DataQuality!Q10>0,\"Small numbers/missing info mean that at least\",\"\")","v":"Small numbers/missing info mean that at least"}]
[null,null,null,{"$f":"\"Predominant recent issue\"&IF(O47=2,\"s are \",\" is \")&C47","v":"Predominant recent issues are contagious, EL and EDP"},null,null,null,null,null,null,{"$f":"IF(DataQuality!Q10=1,\"one measure above should be interpreted with caution.\", \"one measure above may be unreliable.\")","v":"one measure above should be interpreted with caution."}]
[null,null,null,{"$f":"\"Specific heifer management issues \"&IF(E48=1,\"\",\"do not \")&\"currently appear to be important\"","v":"Specific heifer management issues do not currently appear to be important"},null,null,null,null,null,null,{"$f":"IF(DataQuality!Q10>0,\"Click the button below to go back and review this.\",\"\")","v":"Click the button below to go back and review this."}]
[null,null,null,{"$f":"IF(E49=\"NO DATA\",\"TAKE CARE THIS DATASET LACKS ROBUST CLINICAL MASTITIS DATA\",\"Recurrent clinical mastitis is \"&IF(E49=1,\"\",\"not\")&\" currently an important feature\")","v":"TAKE CARE THIS DATASET LACKS ROBUST CLINICAL MASTITIS DATA"}]
[null,null,null,{"$f":"\"There are \"&IF(E50=1,\"\",\"no \")&\"clear important seasonal patterns\"","v":"There are no clear important seasonal patterns"}]
[null,null,"Click to see references to research"]
[]
[]
[]
[]
[]
[]
[]
[]
[]
[]
[]
[]
[]
[]
[]
[]
[]
[]
[]
[]
[]
[]
[]
[]
[]
[null,null,null,null,"category","Cont>75","EDP>75","EL>75","#>75","Max","ContMax","EDPMax","ELMax","MaxCat","SingPlur",null,"Cat","FullText"]
[null,null,{"$f":"VLOOKUP(E46,Q46:R52,2,FALSE)","v":"contagious, EL and EDP"},"Curr",{"$f":"IF(I46>=1,CONCATENATE(F46,G46,H46),N46)","v":"CDL"},{"$f":"IF(D7>=75,\"C\",\"\")","v":""},{"$f":"IF(D8>=75,\"D\",\"\")","v":""},{"$f":"IF(D9>=75,\"L\",\"\")","v":""},{"$f":"COUNTIF(D7:D9,\">=75\")","v":0},{"$f":"MAX(D7:D9)","v":0},{"$f":"IF(D7=J46,\"C\",\"\")","v":"C"},{"$f":"IF(J46=D8,\"D\",\"\")","v":"D"},{"$f":"IF(J46=D9,\"L\",\"\")","v":"L"},{"$f":"CONCATENATE(K46,L46,M46)","v":"CDL"},{"$f":"IF(LEN(E46)=1,1,2)","v":2},null,"C","contagious"]
[null,null,{"$f":"VLOOKUP(E47,Q46:R52,2,FALSE)","v":"contagious, EL and EDP"},"Recent",{"$f":"IF(I47>=1,CONCATENATE(F47,G47,H47),N47)","v":"CDL"},{"$f":"IF(F7>=75,\"C\",\"\")","v":""},{"$f":"IF(F8>=75,\"D\",\"\")","v":""},{"$f":"IF(F9>=75,\"L\",\"\")","v":""},{"$f":"COUNTIF(F7:F9,\">=75\")","v":0},{"$f":"MAX(F7:F9)","v":0},{"$f":"IF(F7=J47,\"C\",\"\")","v":"C"},{"$f":"IF(J47=F8,\"D\",\"\")","v":"D"},{"$f":"IF(J47=F9,\"L\",\"\")","v":"L"},{"$f":"CONCATENATE(K47,L47,M47)","v":"CDL"},{"$f":"IF(LEN(E47)=1,1,2)","v":2},null,"D","EDP"]
[null,null,null,"Heifer",{"$f":"IF(D10>=75,1,0)","v":0},null,null,null,null,null,null,null,null,null,null,null,"L","EL"]
[null,null,null,"Recurr",{"$f":"IF(D11=\"NO DATA\",\"NO DATA\",IF(D11>=75,1,0))","v":"NO DATA"},null,null,null,null,null,null,null,null,null,null,null,"CD","contagious and EDP"]
[null,null,null,"Seas",{"$f":"IF(MAX(J7:J10)>=75,1,0)","v":0},null,null,null,null,null,null,null,null,null,null,null,"CL","contagious and EL"]
[null,null,null,null,null,null,null,null,null,null,null,null,null,null,null,null,"CDL","contagious, EL and EDP"]
[null,null,null,null,null,null,null,null,null,null,null,null,null,null,null,null,"DL","EL and EDP"]
[]
[]
[]
[]
[]
[]
[null,null,null,"Current","Recent","Historic","Seasonality"]
[null,null,"Contagious Issues",0,0,0,0]
[null,null,"Dry Period Environmental Issues",0,0,0,0]
[null,null,"Lactating Period Environmental Issues",0,0,0,0]
[null,null,"Specific Heifer Management Issues",0,0,0,0]
[null,null,"Clinical Mastitis Recurrence Issues","NO DATA","NO DATA","NO DATA"]

{"sheet":"Diagnosis2","index":5,"n_rows":64,"n_cols":10,"rows_kept":64,"cut":false,"hidden":false,"merged":[]}
[]
[null,"Herd Pattern Analysis Tool"]
[]
[null,null,null,null,null,null,null,"Farm ID",{"$f":"IF(FrontPage!C3<>\"\",FrontPage!C3,\"\")","v":""}]
[null,null,{"$f":"'CSV-INPUT'!B1","v":"2020-12-31"},{"$f":"'CSV-INPUT'!C1","v":"2020-09-30"},{"$f":"'CSV-INPUT'!D1","v":"2020-06-30"},{"$f":"'CSV-INPUT'!E1","v":"2020-03-31"},{"$f":"'CSV-INPUT'!F1","v":"2019-12-31"},{"$f":"'CSV-INPUT'!G1","v":"2019-09-30"}]
[null,null,"current","qtr  -1","qtr  -2","qtr  -3","qtr  -4","qtr  -5",null,"historic…………...trend……………..current"]
[null,null,{"$f":"D60","v":0},0,0,0,0,0,"Contagious"]
[null,null,0,0,0,0,0,0,"Environmental Dry Period"]
[null,null,0,0,0,0,0,0,"Environmental Lactating Period "]
[null,null,0,0,0,0,0,0,"Specific Heifer Management"]
[null,null,"NO DATA","NO DATA","NO DATA","NO DATA","NO DATA","NO DATA","Clinical Mastitis Recurrence"]
[]
[null,null,"Numbers indicate the relative importance of different patterns on a scale of 1 to 100"]
[]
[]
[]
[]
[]
[]
[]
[]
[]
[]
[]
[]
[]
[]
[]
[]
[]
[]
[]
[]
[]
[]
[]
[]
[]
[]
[]
[]
[]
[]
[]
[]
[]
[]
[]
[]
[]
[]
[]
[]
[]
[]
[]
[]
[]
[null,null,null,"Current Quarter","Quarter -1","Quarter -2","Quarter -3","Quarter -4","Quarter -5"]
[null,null,"Contagious Issues",0,0,0,0,0,0]
[null,null,"Dry Period Environmental Issues",0,0,0,0,0,0]
[null,null,"Lactating Period Environmental Issues",0,0,0,0,0,0]
[null,null,"Specific Heifer Management Issues",0,0,0,0,0,0]
[null,null,"Clinical Mastitis Recurrence Issues","NO DATA","NO DATA","NO DATA","NO DATA","NO DATA","NO DATA"]

{"sheet":"DiagReport","index":6,"n_rows":31,"n_cols":34,"rows_kept":31,"cut":false,"hidden":false,"merged":[[25,2,25,4],[5,2,5,3],[5,4,5,5],[5,6,5,7],[5,8,5,9],[21,2,21,4],[22,2,22,4],[23,2,23,4],[24,2,24,4]]}
[null,null,null,null,null,null,null,null,null,null,null,null,null,null,null,null,null,null,null,null,"category","Cont>75","EDP>75","EL>75","#>75","Max","ContMax","EDPMax","ELMax","MaxCat","SingPlur",null,"Cat","FullText"]
[null,null,null,null,null,null,"Farm ID",{"$f":"IF(FrontPage!C3<>\"\",FrontPage!C3,\"\")","v":""},null,null,null,null,null,null,null,null,null,null,{"$f":"VLOOKUP(U2,AG2:AH8,2,FALSE)","v":"contagious, EL and EDP"},"Curr",{"$f":"IF(Y2>=1,CONCATENATE(V2,W2,X2),AD2)","v":"CDL"},{"$f":"IF(C7>=75,\"C\",\"\")","v":""},{"$f":"IF(C8>=75,\"D\",\"\")","v":""},{"$f":"IF(C9>=75,\"L\",\"\")","v":""},{"$f":"COUNTIF(C7:C9,\">=75\")","v":0},{"$f":"MAX(C7:C9)","v":0},{"$f":"IF(C7=Z2,\"C\",\"\")","v":"C"},{"$f":"IF(Z2=C8,\"D\",\"\")","v":"D"},{"$f":"IF(Z2=C9,\"L\",\"\")","v":"L"},{"$f":"CONCATENATE(AA2,AB2,AC2)","v":"CDL"},{"$f":"IF(LEN(U2)=1,1,2)","v":2},null,"C","contagious"]
[null,null,null,null,null,null,null,null,null,null,null,null,null,null,null,null,null,null,{"$f":"VLOOKUP(U3,AG2:AH8,2,FALSE)","v":"contagious, EL and EDP"},"Recent",{"$f":"IF(Y3>=1,CONCATENATE(V3,W3,X3),AD3)","v":"CDL"},{"$f":"IF(E7>=75,\"C\",\"\")","v":""},{"$f":"IF(E8>=75,\"D\",\"\")","v":""},{"$f":"IF(E9>=75,\"L\",\"\")","v":""},{"$f":"COUNTIF(E7:E9,\">=75\")","v":0},{"$f":"MAX(E7:E9)","v":0},{"$f":"IF(E7=Z3,\"C\",\"\")","v":"C"},{"$f":"IF(Z3=E8,\"D\",\"\")","v":"D"},{"$f":"IF(Z3=E9,\"L\",\"\")","v":"L"},{"$f":"CONCATENATE(AA3,AB3,AC3)","v":"CDL"},{"$f":"IF(LEN(U3)=1,1,2)","v":2},null,"D","EDP"]
[null,"  Herd Pattern Analysis Tool",null,null,null,null,"Mastitis Pattern Report",null,null,null,null,null,null,null,null,null,null,null,null,"Heifer",{"$f":"IF(C10>=75,1,0)","v":0},null,null,null,null,null,null,null,null,null,null,null,"L","EL"]
[null,{"$f":"'CSV-INPUT'!B1","v":"2020-12-31"},null,"Last 3 months",null,"Last 12 months",null,"12 - 18 months ago",null,null,null,null,null,null,null,null,null,null,null,"Recurr",{"$f":"IF(C11=\"NO DATA\",\"NO DATA\",IF(C11>=75,1,0))","v":"NO DATA"},null,null,null,null,null,null,null,null,null,null,null,"CD","contagious and EDP"]
[null,null,"Current",null,"Recent",null,"Historic",null,"Seasonality",null,null,null,null,null,null,null,null,null,null,"Seas",{"$f":"IF(MAX(I7:I10)>=75,1,0)","v":0},null,null,null,null,null,null,null,null,null,null,null,"CL","contagious and EL"]
[null,"Contagious",{"$f":"Diagnosis1!D7","v":0},{"$f":"C7","v":0},{"$f":"Diagnosis1!F7","v":0},{"$f":"E7","v":0},{"$f":"Diagnosis1!H7","v":0},{"$f":"G7","v":0},{"$f":"Diagnosis1!J7","v":0},{"$f":"I7","v":0},null,null,null,null,null,null,null,null,null,null,null,null,null,null,null,null,null,null,null,null,null,null,"CDL","contagious, EL and EDP"]
[null,"Environmental Dry Period ",{"$f":"Diagnosis1!D8","v":0},{"$f":"C8","v":0},{"$f":"Diagnosis1!F8","v":0},0,{"$f":"Diagnosis1!H8","v":0},{"$f":"G8","v":0},{"$f":"Diagnosis1!J8","v":0},{"$f":"I8","v":0},null,null,null,null,null,null,null,null,null,null,null,null,null,null,null,null,null,null,null,null,null,null,"DL","EL and EDP"]
[null,"Environmental Lactation",{"$f":"Diagnosis1!D9","v":0},0,{"$f":"Diagnosis1!F9","v":0},0,{"$f":"Diagnosis1!H9","v":0},0,{"$f":"Diagnosis1!J9","v":0},0]
[null,"Specific Heifer Management",{"$f":"Diagnosis1!D10","v":0},0,{"$f":"Diagnosis1!F10","v":0},0,{"$f":"Diagnosis1!H10","v":0},0,{"$f":"Diagnosis1!J10","v":0},0]
[null,"Clinical Mastitis Recurrence",{"$f":"Diagnosis1!D11","v":"NO DATA"},"NO DATA",{"$f":"Diagnosis1!F11","v":"NO DATA"},"NO DATA",{"$f":"Diagnosis1!H11","v":"NO DATA"},"NO DATA"]
[null,null,"Numbers indicate the relative importance of different patterns on a scale of 1 to 100"]
[null,"Key points"]
[null,{"$f":"\"Predominant current issue\" & IF(AE2=2,\"s are \",\" is \") & S2","v":"Predominant current issues are contagious, EL and EDP"}]
[null,{"$f":"\"Predominant recent issue\"&IF(AE3=2,\"s are \",\" is \")&S3","v":"Predominant recent issues are contagious, EL and EDP"}]
[null,{"$f":"\"Specific heifer management issues \"&IF(U4=1,\"\",\"do not \")&\"currently appear to be important\"","v":"Specific heifer management issues do not currently appear to be important"},null,null,null,null,null,{"$f":"IF(DataQuality!Q10>0,\"Small numbers/missing info mean that at least\",\"\")","v":"Small numbers/missing info mean that at least"}]
[null,{"$f":"IF(U5=\"NO DATA\",\"TAKE CARE THIS DATASET LACKS ROBUST CLINICAL MASTITIS DATA\",\"Recurrent clinical mastitis is \"&IF(U5=1,\"\",\"not\")&\" currently an important feature\")","v":"TAKE CARE THIS DATASET LACKS ROBUST CLINICAL MASTITIS DATA"},null,null,null,null,null,{"$f":"IF(DataQuality!Q10=1,\"one measure above should be interpreted with caution.\", \"one measure above may be unreliable.\")","v":"one measure above should be interpreted with caution."}]
[null,{"$f":"\"There are \"&IF(U6=1,\"\",\"no \")&\"clear important seasonal patterns\"","v":"There are no clear important seasonal patterns"}]
[]
[null,null,{"$f":"F20","v":"00:00:00"},null,null,{"$f":"FrontPage!D3","v":"00:00:00"},{"$f":"FrontPage!E3","v":"00:00:00"},{"$f":"FrontPage!F3","v":"00:00:00"},{"$f":"FrontPage!G3","v":"00:00:00"},{"$f":"FrontPage!H3","v":"00:00:00"},{"$f":"FrontPage!I3","v":"00:00:00"}]
[null,{"$f":"Diagnosis2!J6","v":"historic…………...trend……………..current"},null,null,null,"current","qtr  -1","qtr  -2","qtr  -3","qtr  -4","qtr  -5"]
[null,null,"Contagious",null,null,{"$f":"Diagnosis2!C7","v":0},{"$f":"Diagnosis2!D7","v":0},{"$f":"Diagnosis2!E7","v":0},{"$f":"Diagnosis2!F7","v":0},{"$f":"Diagnosis2!G7","v":0},{"$f":"Diagnosis2!H7","v":0}]
[null,null,"Environmental Dry Period",null,null,{"$f":"Diagnosis2!C8","v":0},{"$f":"Diagnosis2!D8","v":0},{"$f":"Diagnosis2!E8","v":0},{"$f":"Diagnosis2!F8","v":0},{"$f":"Diagnosis2!G8","v":0},{"$f":"Diagnosis2!H8","v":0}]
[null,null,"Environmental Lact'n",null,null,{"$f":"Diagnosis2!C9","v":0},{"$f":"Diagnosis2!D9","v":0},{"$f":"Diagnosis2!E9","v":0},{"$f":"Diagnosis2!F9","v":0},{"$f":"Diagnosis2!G9","v":0},{"$f":"Diagnosis2!H9","v":0}]
[null,null,"Heifer Management",null,null,{"$f":"Diagnosis2!C10","v":0},{"$f":"Diagnosis2!D10","v":0},{"$f":"Diagnosis2!E10","v":0},{"$f":"Diagnosis2!F10","v":0},{"$f":"Diagnosis2!G10","v":0},{"$f":"Diagnosis2!H10","v":0}]
[null,null,"Clinical Mast Recurrence",null,null,{"$f":"Diagnosis2!C11","v":"NO DATA"},{"$f":"Diagnosis2!D11","v":"NO DATA"},{"$f":"Diagnosis2!E11","v":"NO DATA"},{"$f":"Diagnosis2!F11","v":"NO DATA"},{"$f":"Diagnosis2!G11","v":"NO DATA"},{"$f":"Diagnosis2!H11","v":"NO DATA"}]
[]
[]
[]
[]
[null,null,null,null,null,null,"Mastitis Pattern Analysis Tool V 2.0"]

{"sheet":"Inputs","index":7,"n_rows":56,"n_cols":27,"rows_kept":56,"cut":false,"hidden":true,"merged":[]}
[null,null,null,null,null,null,null,null,null,"Contagious vs Environmental",null,"Environmental Dry Period",null,"Environmental Lactating Period",null,"    Heifer Management",null,"   Recurrence Factor",null,null,null,null,null,"Collated Scores"]
[null,"Current Qrt (0)","Qrt -1","Qrt -2","Qrt -3","Qrt -4","Qrt -5","Data Source",null,"Low Score Threshold","High Score Threshold","Low Score Threshold","High Score Threshold","Low Score Threshold","High Score Threshold","Low Score Threshold","High Score Threshold","Low Score Threshold","High Score Threshold",null,"Parameter","Qrt 0 Score","Qrt -1 Score","Qrt -2 Score","Qrt -3 Score","Qrt -4 Score","Qrt -5 Score"]
["COW DATA",null,null,null,null,null,null,null,null,null,null,null,null,null,null,null,null,null,null,null,"Contagious vs Environmental"]
["SCC Parameters",null,null,null,null,null,null,null,null,null,null,null,null,null,null,null,null,null,null,null,"BMSCC",{"$f":"IF(B56=0,0,IF(B56=\"\",0,IF(B5<$J5,0,IF(B5>$K5,2,1))))","v":0},{"$f":"IF(C56=0,0,IF(C56=\"\",0,IF(C5<$J5,0,IF(C5>$K5,2,1))))","v":0},0,0,0,0]
["BMSCC (,000 cells/ml)",null,null,null,null,null,null,"Herd Mastitis Summary",null,200,300,null,null,null,null,null,null,null,null,null,"Chronics",{"$f":"IF(B55=0,0,IF(B55=\"\",0,IF(B6<$J6,0,IF(B6>$K6,2,1))))","v":0},0,0,0,0,0]
["% Chronic",null,null,null,null,null,null,"Herd Mastitis Summary",null,10,20,null,null,null,null,null,null,null,null,null,">200K",{"$f":"IF(B55=0,0,IF(B55=\"\",0,IF(B7<$J7,0,IF(B7>$K7,2,1))))","v":0},0,0,0,0,0]
["% >200K",null,null,null,null,null,null,"Herd Mastitis Summary",null,20,30,null,null,null,null,null,null,null,null,null,"Chronic:>200K Ratio",{"$f":"IF(B55=0,0,IF(B55=\"\",0,IF(B8<$J8,0,IF(B8>$K8,2,1))))","v":0},0,0,0,0,0]
["Chronic:>200K Ratio",{"$f":"B6/(B7+0.00000001)","v":0},0,0,0,0,{"$f":"G6/(G7+0.00000001)","v":0},null,null,0.33333333300000001,0.66666666600000002,null,null,null,null,null,null,null,null,null,"DP Apparent Cure",{"$f":"IF(B55=0,0,IF(B55=\"\",0,IF(B11>$J11,0,IF(B11<$K11,2,1))))","v":0},0,0,0,0,0]
["Lactation New IMI (%)",null,null,null,null,null,null,"Herd Mastitis Summary",null,null,null,15,7,7,10,null,null,null,null,null,"DP 'Actual' Cure",{"$f":"IF(B55=0,0,IF(B55=\"\",0,IF(B12>$J12,0,IF(B12<$K12,2,1))))","v":0},0,0,0,0,0]
["Dry Period New IMI (%)",null,null,null,null,null,null,"Herd Mastitis Summary",null,null,null,10,20,33,10,null,null,null,null,null,"CM Cure",{"$f":"IF(B18<5,\"NO DATA\",IF(B55=0,0,IF(B55=\"\",0,IF(B19>$J19,0,IF(B19<$K19,2,1)))))","v":"NO DATA"},"NO DATA","NO DATA","NO DATA","NO DATA","NO DATA"]
["'Apparent' Dry Period Cure (%)",null,null,null,null,null,null,"Herd Mastitis Summary",null,75,60,null,null,null,null,null,null,null,null,null,"CM Recurrence Factor",{"$f":"IF(B18<5,\"NO DATA\",IF(B20>$R20,0,IF(B20<$S20,2,1)))","v":"NO DATA"},{"$f":"IF(C18<5,\"NO DATA\",IF(C20>$R20,0,IF(C20<$S20,2,1)))","v":"NO DATA"},"NO DATA","NO DATA","NO DATA","NO DATA"]
["'Actual' Dry Period Cure (%)",{"$f":"B10+B11","v":0},0,0,0,0,0,null,null,85,75,null,null,null,null,null,null,null,null,null,"Total 'Contagious' Score",{"$f":"SUM(V4:V11)","v":0},0,0,0,0,0]
["Clinical Mastitis Parameters"]
["Dry Period Origin CM Rate  (in 12)",null,null,null,null,null,null,"Herd Mastitis Summary",null,null,null,1,2,null,null,null,null,null,null,null,"Dry Period Environmental"]
["Lactating Period Origin CM Rate  (in 12)",null,null,null,null,null,null,"Herd Mastitis Summary",null,null,null,null,null,2,4,null,null,null,null,null,"DP New IMI",{"$f":"IF(B55=0,0,IF(B55=\"\",0,IF(B10<$L10,0,IF(B10>$M10,2,1))))","v":0},0,0,0,0,0]
["DPO Ratio",{"$f":"B14/(B14+B15+0.000000001)","v":0},{"$f":"C14/(C14+C15+0.000000001)","v":0},0,0,0,0,null,null,null,null,0.33333332999999998,0.66666665999999997,0.66666669999999995,0.33333332999999998,null,null,null,null,null,"Lact New IMI",{"$f":"IF(B55=0,0,IF(B55=\"\",0,IF(B9>$L9,0,IF(B9<$M9,2,1))))","v":0},0,0,0,0,0]
["Qrt CMIR (/100 cows/year)",null,null,null,null,null,null,"Herd Mastitis Summary",null,null,null,null,null,null,null,null,null,null,null,null,"DPO CM",{"$f":"IF(B18<5,\"NO DATA\",IF(B14<$L14,0,IF(B14>$M14,2,1)))","v":"NO DATA"},{"$f":"IF(C18<5,\"NO DATA\",IF(C14<$L14,0,IF(C14>$M14,2,1)))","v":"NO DATA"},"NO DATA","NO DATA","NO DATA","NO DATA"]
["Cow CMIR (/100 cows/year)",null,null,null,null,null,null,"Herd Mastitis Summary",null,null,null,null,null,null,null,null,null,null,null,null,"DPO Ratio",{"$f":"IF(B18<5,\"NO DATA\",IF(B16<$L16,0,IF(B16>$M16,2,1)))","v":"NO DATA"},{"$f":"IF(C18<5,\"NO DATA\",IF(C16<$L16,0,IF(C16>$M16,2,1)))","v":"NO DATA"},"NO DATA","NO DATA","NO DATA","NO DATA"]
["Clinical Mastitis Cure Rate (1st Case)",null,null,null,null,null,null,"12 month rolling 1st clinical case cure rate",null,40,25,null,null,null,null,null,null,null,null,null,"Total 'Dry Period' Score",{"$f":"SUM(V15:V18)","v":0},0,0,0,0,0]
["Clinical Mastitis Recurrence Factor",{"$f":"((B14+B15)*8.5)/((B17+B18+0.0000000001)/2)","v":0},{"$f":"((C14+C15)*8.5)/((C17+C18+0.0000000001)/2)","v":0},0,0,0,0,null,null,null,null,null,null,null,null,null,null,0.6,0.4]
["HEIFER DATA",null,null,null,null,null,null,null,null,null,null,null,null,null,null,null,null,null,null,null,"Lactating  Period Environmental"]
["SCC Parameters",null,null,null,null,null,null,null,null,null,null,null,null,null,null,null,null,null,null,null,"DP New IMI",{"$f":"IF(B55=0,0,IF(B55=\"\",0,IF(B10>$N10,0,IF(B10<$O10,2,1))))","v":0},0,0,0,0,0]
[null,null,null,null,null,null,null,null,null,null,null,null,null,null,null,null,null,null,null,null,"Lact New IMI",{"$f":"IF(B55=0,0,IF(B55=\"\",0,IF(B9<$N9,0,IF(B9>$O9,2,1))))","v":0},0,0,0,0,0]
[null,null,null,null,null,null,null,null,null,null,null,null,null,null,null,null,null,null,null,null,"LPO CM",{"$f":"IF(B18<5,\"NO DATA\",IF(B15<$N15,0,IF(B15>$O15,2,1)))","v":"NO DATA"},{"$f":"IF(C18<5,\"NO DATA\",IF(C15<$N15,0,IF(C15>$O15,2,1)))","v":"NO DATA"},"NO DATA","NO DATA","NO DATA","NO DATA"]
[null,null,null,null,null,null,null,null,null,null,null,null,null,null,null,null,null,null,null,null,"LPO Ratio",{"$f":"IF(B18<5,\"NO DATA\",IF(B16>$N16,0,IF(B16<$O16,2,1)))","v":"NO DATA"},{"$f":"IF(C18<5,\"NO DATA\",IF(C16>$N16,0,IF(C16<$O16,2,1)))","v":"NO DATA"},"NO DATA","NO DATA","NO DATA","NO DATA"]
[]
[null,null,null,null,null,null,null,null,null,null,null,null,null,null,null,null,null,null,null,null,"Total 'Lactating Period' Score",{"$f":"SUM(V22:V25)","v":0},0,0,0,0,0]
[]
[]
["SUM of No Infected",{"$f":"SUM(B27:B29)","v":0},0,0,0,0,0]
["Heifer DPIMI Rate (Qrt)",{"$f":"B30/B26*100","v":{"$error":"#DIV/0!"}},{"$error":"#DIV/0!"},{"$error":"#DIV/0!"},{"$error":"#DIV/0!"},{"$error":"#DIV/0!"},{"$error":"#DIV/0!"}]
["Clinical mastitis Parameters"]
[null,null,null,null,null,null,null,null,null,null,null,null,null,null,null,null,null,null,null,null,"Heifer Management"]
[null,null,null,null,null,null,null,null,null,null,null,null,null,null,null,null,null,null,null,null,"DP New IMI",{"$f":"IF(B55=0,0,IF(B55=\"\",0,IF(B47<$P47,0,IF(B47>$Q47,2,1))))","v":0},0,0,0,0,0]
[null,null,null,null,null,null,null,null,null,null,null,null,null,null,null,null,null,null,null,null,"DPO CM",{"$f":"IF(B18<5,\"NO DATA\",IF(B48<$P48,0,IF(B48>$Q48,2,1)))","v":"NO DATA"},{"$f":"IF(C18<5,\"NO DATA\",IF(C48<$P48,0,IF(C48>$Q48,2,1)))","v":"NO DATA"},"NO DATA","NO DATA","NO DATA","NO DATA"]
[]
[]
[]
[]
[null,null,null,null,null,null,null,null,null,null,null,null,null,null,null,null,null,null,null,null,"Total 'Heifer' Score",{"$f":"SUM(V34:V35)","v":0},0,0,0,0,0]
[null,null,null,null,null,null,null,null,null,null,null,null,null,null,null,null,null,null,null,null,"Relative 'Heifer' Score",{"$f":"V40/((V19+0.0000000001)/2)","v":0},{"$f":"W40/((W19+0.0000000001)/2)","v":0},0,0,0,0]
[]
["Heifer DP  (Month 1) - Adjusted Rate",{"$f":"B40*B37","v":0},0,0,0,0,0]
["Heifer DP  (Month 2) - Adjusted Rate",0,0,0,0,0,0]
["Heifer DP  (Month 3) - Adjusted Rate",0,0,0,0,0,0]
["Calculated Rate",{"$f":"B43+B44+B45","v":0},0,0,0,0,0]
["Dry Period New IMI (%)",null,null,null,null,null,null,null,null,null,null,null,null,null,null,10,20,null,null,null,"Recurrence"]
["Dry Period Origin CM Rate  (in 12)",null,null,null,null,null,null,null,null,null,null,null,null,null,null,1,2,null,null,null,"Recurrence Score",{"$f":"IF(B18<5,\"NO DATA\",IF(B20>$R20,0,IF(B20<$S20,2,1)))","v":"NO DATA"},{"$f":"IF(C18<5,\"NO DATA\",IF(C20>$R20,0,IF(C20<$S20,2,1)))","v":"NO DATA"},"NO DATA","NO DATA","NO DATA","NO DATA"]
[]
["Number of Recordings",null,null,null,null,null,null,null,null,null,null,null,null,null,null,null,null,null,null,null,null,null,null,null,null,null,"Notes"]
["Number of Calvings (All Cows)",null,null,null,null,null,null,null,null,null,null,null,null,null,null,null,null,null,null,null,null,null,null,null,null,null,"Cows = All females parity >=1 (ie includes heifers)"]
["Number of Calvings (Heifers)",null,null,null,null,null,null,null,null,null,null,null,null,null,null,null,null,null,null,null,null,null,null,null,null,null,"Heifers = Parity =1 (ie heifers alone)"]
["Number of Clinical Cases",null,null,null,null,null,null,null,null,null,null,null,null,null,null,null,null,null,null,null,null,null,null,null,null,null,"Select current quarter based on either season (housed animals) or key management change (eg housing or turnout)"]
[]
["SCC FUDGE (Again just in case something different about refs to csv import)",{"$f":"B6+B7+B9+B10+B11","v":0},{"$f":"C6+C7+C9+C10+C11","v":0},0,0,0,0]
["BMSCC (Again just in case something different about refs to csv import)",{"$f":"B5","v":0},{"$f":"C5","v":0},0,0,0,0]

{"sheet":"Calculations","index":8,"n_rows":40,"n_cols":18,"rows_kept":40,"cut":false,"hidden":true,"merged":[]}
[null,null,null,"Collated Scores"]
["Parameter","Qrt 0 Score","Qrt -1 Score","Qrt -2 Score","Qrt -3 Score","Qrt -4 Score","Qrt -5 Score","Max Score","Min Score","Mean Score","Seasonality Score"]
["Contagious vs Environmental",null,null,null,null,null,null,null,null,null,null,null,null,null,"Current","Recent","Historic","Seasonality"]
["BMSCC",{"$f":"Inputs!V4","v":0},{"$f":"Inputs!W4","v":0},{"$f":"Inputs!X4","v":0},{"$f":"Inputs!Y4","v":0},{"$f":"Inputs!Z4","v":0},{"$f":"Inputs!AA4","v":0},null,null,null,null,null,null,"Contagious Issues",{"$f":"B13","v":0},{"$f":"MAX(B13:E13)","v":0},{"$f":"MAX(F13:G13)","v":0},{"$f":"K12","v":0}]
["Chronics",{"$f":"Inputs!V5","v":0},{"$f":"Inputs!W5","v":0},{"$f":"Inputs!X5","v":0},{"$f":"Inputs!Y5","v":0},{"$f":"Inputs!Z5","v":0},{"$f":"Inputs!AA5","v":0},null,null,null,null,null,null,"Dry Period Environmental Issues",{"$f":"B21","v":0},{"$f":"MAX(B21:E21)","v":0},{"$f":"MAX(F21:G21)","v":0},{"$f":"K20","v":0}]
[">200K",{"$f":"Inputs!V6","v":0},{"$f":"Inputs!W6","v":0},{"$f":"Inputs!X6","v":0},{"$f":"Inputs!Y6","v":0},{"$f":"Inputs!Z6","v":0},{"$f":"Inputs!AA6","v":0},null,null,null,null,null,null,"Lactating Period Environmental Issues",{"$f":"B29","v":0},{"$f":"MAX(B29:E29)","v":0},{"$f":"MAX(F29:G29)","v":0},{"$f":"K28","v":0}]
["Chronic:>200K Ratio",{"$f":"Inputs!V7","v":0},{"$f":"Inputs!W7","v":0},{"$f":"Inputs!X7","v":0},{"$f":"Inputs!Y7","v":0},{"$f":"Inputs!Z7","v":0},{"$f":"Inputs!AA7","v":0},null,null,null,null,null,null,"Specific Heifer Management Issues",{"$f":"B36","v":0},{"$f":"MAX(B36:E36)","v":0},{"$f":"MAX(F36:G36)","v":0},{"$f":"K35","v":0}]
["DP Apparent Cure",{"$f":"Inputs!V8","v":0},{"$f":"Inputs!W8","v":0},{"$f":"Inputs!X8","v":0},{"$f":"Inputs!Y8","v":0},{"$f":"Inputs!Z8","v":0},{"$f":"Inputs!AA8","v":0},null,null,null,null,null,null,"Clinical Mastitis Recurrence Issues",{"$f":"B40","v":"NO DATA"},{"$f":"MAX(B40:E40)","v":0},{"$f":"MAX(F40:G40)","v":0}]
["DP 'Actual' Cure",{"$f":"Inputs!V9","v":0},{"$f":"Inputs!W9","v":0},{"$f":"Inputs!X9","v":0},{"$f":"Inputs!Y9","v":0},{"$f":"Inputs!Z9","v":0},{"$f":"Inputs!AA9","v":0}]
["CM Cure",{"$f":"Inputs!V10","v":"NO DATA"},{"$f":"Inputs!W10","v":"NO DATA"},{"$f":"Inputs!X10","v":"NO DATA"},{"$f":"Inputs!Y10","v":"NO DATA"},{"$f":"Inputs!Z10","v":"NO DATA"},{"$f":"Inputs!AA10","v":"NO DATA"}]
["CM Recurrence Factor",{"$f":"Inputs!V11","v":"NO DATA"},{"$f":"Inputs!W11","v":"NO DATA"},{"$f":"Inputs!X11","v":"NO DATA"},{"$f":"Inputs!Y11","v":"NO DATA"},{"$f":"Inputs!Z11","v":"NO DATA"},{"$f":"Inputs!AA11","v":"NO DATA"},null,null,null,null,null,null,"Notes:"]
["Total 'Contagious' Score",{"$f":"Inputs!V12","v":0},{"$f":"Inputs!W12","v":0},{"$f":"Inputs!X12","v":0},{"$f":"Inputs!Y12","v":0},{"$f":"Inputs!Z12","v":0},{"$f":"Inputs!AA12","v":0},{"$f":"MAX(B12:G12)+0.000000001","v":1.0000000000000001E-9},{"$f":"MIN(B12:G12)+0.000000001","v":1.0000000000000001E-9},{"$f":"AVERAGE(B12:G12)+0.000000001","v":1.0000000000000001E-9},{"$f":"(100-(((I12)/H12)*100)+(100-(((J12)/H12)*100)+(100-(((I12)/J12)*100))))/3","v":0},null,null,"Current = This quarter"]
["% 'Contagious' Score",{"$f":"IF(B10=\"NO DATA\",B12/12*100,IF(Inputs!B55=0,B12/6*100,IF(Inputs!B56=0,B12/14*100,B12/16*100)))","v":0},{"$f":"IF(C10=\"NO DATA\",C12/12*100,IF(Inputs!C55=0,C12/6*100,IF(Inputs!C56=0,C12/14*100,C12/16*100)))","v":0},{"$f":"IF(D10=\"NO DATA\",D12/12*100,IF(Inputs!D55=0,D12/6*100,IF(Inputs!D56=0,D12/14*100,D12/16*100)))","v":0},{"$f":"IF(E10=\"NO DATA\",E12/12*100,IF(Inputs!E55=0,E12/6*100,IF(Inputs!E56=0,E12/14*100,E12/16*100)))","v":0},{"$f":"IF(F10=\"NO DATA\",F12/12*100,IF(Inputs!F55=0,F12/6*100,IF(Inputs!F56=0,F12/14*100,F12/16*100)))","v":0},{"$f":"IF(G10=\"NO DATA\",G12/12*100,IF(Inputs!G55=0,G12/6*100,IF(Inputs!G56=0,G12/14*100,G12/16*100)))","v":0},null,null,null,null,null,null,"Recent = This year"]
[null,null,null,null,null,null,null,null,null,null,null,null,null,"Historic = > 1 year, but < 18 months"]
["Dry Period Environmental"]
["DP New IMI",{"$f":"Inputs!V15","v":0},{"$f":"Inputs!W15","v":0},{"$f":"Inputs!X15","v":0},{"$f":"Inputs!Y15","v":0},{"$f":"Inputs!Z15","v":0},{"$f":"Inputs!AA15","v":0}]
["Lact New IMI",{"$f":"Inputs!V16","v":0},{"$f":"Inputs!W16","v":0},{"$f":"Inputs!X16","v":0},{"$f":"Inputs!Y16","v":0},{"$f":"Inputs!Z16","v":0},{"$f":"Inputs!AA16","v":0}]
["DPO CM",{"$f":"Inputs!V17","v":"NO DATA"},{"$f":"Inputs!W17","v":"NO DATA"},{"$f":"Inputs!X17","v":"NO DATA"},{"$f":"Inputs!Y17","v":"NO DATA"},{"$f":"Inputs!Z17","v":"NO DATA"},{"$f":"Inputs!AA17","v":"NO DATA"}]
["DPO Ratio",{"$f":"Inputs!V18","v":"NO DATA"},{"$f":"Inputs!W18","v":"NO DATA"},{"$f":"Inputs!X18","v":"NO DATA"},{"$f":"Inputs!Y18","v":"NO DATA"},{"$f":"Inputs!Z18","v":"NO DATA"},{"$f":"Inputs!AA18","v":"NO DATA"}]
["Total 'Dry Period' Score",{"$f":"Inputs!V19","v":0},{"$f":"Inputs!W19","v":0},{"$f":"Inputs!X19","v":0},{"$f":"Inputs!Y19","v":0},{"$f":"Inputs!Z19","v":0},{"$f":"Inputs!AA19","v":0},{"$f":"MAX(B20:G20)+0.000000001","v":1.0000000000000001E-9},{"$f":"MIN(B20:G20)+0.000000001","v":1.0000000000000001E-9},{"$f":"AVERAGE(B20:G20)+0.000000001","v":1.0000000000000001E-9},{"$f":"(100-(((I20)/H20)*100)+(100-(((J20)/H20)*100)+(100-(((I20)/J20)*100))))/3","v":0}]
["% 'Dry Period' Score",{"$f":"IF(B18=\"NO DATA\",B20/4*100,IF(Inputs!B55=0,B20/4*100,B20/8*100))","v":0},{"$f":"IF(C18=\"NO DATA\",C20/4*100,IF(Inputs!C55=0,C20/4*100,C20/8*100))","v":0},{"$f":"IF(D18=\"NO DATA\",D20/4*100,IF(Inputs!D55=0,D20/4*100,D20/8*100))","v":0},{"$f":"IF(E18=\"NO DATA\",E20/4*100,IF(Inputs!E55=0,E20/4*100,E20/8*100))","v":0},{"$f":"IF(F18=\"NO DATA\",F20/4*100,IF(Inputs!F55=0,F20/4*100,F20/8*100))","v":0},{"$f":"IF(G18=\"NO DATA\",G20/4*100,IF(Inputs!G55=0,G20/4*100,G20/8*100))","v":0}]
[]
["Lactating  Period Environmental"]
["DP New IMI",{"$f":"Inputs!V22","v":0},{"$f":"Inputs!W22","v":0},{"$f":"Inputs!X22","v":0},{"$f":"Inputs!Y22","v":0},{"$f":"Inputs!Z22","v":0},{"$f":"Inputs!AA22","v":0}]
["Lact New IMI",{"$f":"Inputs!V23","v":0},{"$f":"Inputs!W23","v":0},{"$f":"Inputs!X23","v":0},{"$f":"Inputs!Y23","v":0},{"$f":"Inputs!Z23","v":0},{"$f":"Inputs!AA23","v":0}]
["LPO CM",{"$f":"Inputs!V24","v":"NO DATA"},{"$f":"Inputs!W24","v":"NO DATA"},{"$f":"Inputs!X24","v":"NO DATA"},{"$f":"Inputs!Y24","v":"NO DATA"},{"$f":"Inputs!Z24","v":"NO DATA"},{"$f":"Inputs!AA24","v":"NO DATA"}]
["LPO Ratio",{"$f":"Inputs!V25","v":"NO DATA"},{"$f":"Inputs!W25","v":"NO DATA"},{"$f":"Inputs!X25","v":"NO DATA"},{"$f":"Inputs!Y25","v":"NO DATA"},{"$f":"Inputs!Z25","v":"NO DATA"},{"$f":"Inputs!AA25","v":"NO DATA"}]
["Total 'Lactating Period' Score",{"$f":"Inputs!V27","v":0},{"$f":"Inputs!W27","v":0},{"$f":"Inputs!X27","v":0},{"$f":"Inputs!Y27","v":0},{"$f":"Inputs!Z27","v":0},{"$f":"Inputs!AA27","v":0},{"$f":"MAX(B28:G28)+0.000000001","v":1.0000000000000001E-9},{"$f":"MIN(B28:G28)+0.000000001","v":1.0000000000000001E-9},{"$f":"AVERAGE(B28:G28)+0.000000001","v":1.0000000000000001E-9},{"$f":"(100-(((I28)/H28)*100)+(100-(((J28)/H28)*100)+(100-(((I28)/J28)*100))))/3","v":0}]
["% 'Lactating Period' Score",{"$f":"IF(B26=\"NO DATA\",B28/4*100,IF(Inputs!B55=0,B28/4*100,B28/8*100))","v":0},{"$f":"IF(C26=\"NO DATA\",C28/4*100,IF(Inputs!C55=0,C28/4*100,C28/8*100))","v":0},{"$f":"IF(D26=\"NO DATA\",D28/4*100,IF(Inputs!D55=0,D28/4*100,D28/8*100))","v":0},{"$f":"IF(E26=\"NO DATA\",E28/4*100,IF(Inputs!E55=0,E28/4*100,E28/8*100))","v":0},{"$f":"IF(F26=\"NO DATA\",F28/4*100,IF(Inputs!F55=0,F28/4*100,F28/8*100))","v":0},{"$f":"IF(G26=\"NO DATA\",G28/4*100,IF(Inputs!G55=0,G28/4*100,G28/8*100))","v":0}]
[]
["Heifer Management"]
["DP New IMI",{"$f":"Inputs!V34","v":0},{"$f":"Inputs!W34","v":0},{"$f":"Inputs!X34","v":0},{"$f":"Inputs!Y34","v":0},{"$f":"Inputs!Z34","v":0},{"$f":"Inputs!AA34","v":0}]
["DPO CM",{"$f":"Inputs!V35","v":"NO DATA"},{"$f":"Inputs!W35","v":"NO DATA"},{"$f":"Inputs!X35","v":"NO DATA"},{"$f":"Inputs!Y35","v":"NO DATA"},{"$f":"Inputs!Z35","v":"NO DATA"},{"$f":"Inputs!AA35","v":"NO DATA"}]
["Total 'Heifer' Score",{"$f":"Inputs!V40","v":0},{"$f":"Inputs!W40","v":0},{"$f":"Inputs!X40","v":0},{"$f":"Inputs!Y40","v":0},{"$f":"Inputs!Z40","v":0},{"$f":"Inputs!AA40","v":0}]
["Relative 'Heifer' Score",{"$f":"Inputs!V41","v":0},{"$f":"Inputs!W41","v":0},{"$f":"Inputs!X41","v":0},{"$f":"Inputs!Y41","v":0},{"$f":"Inputs!Z41","v":0},{"$f":"Inputs!AA41","v":0},{"$f":"MAX(B35:G35)+0.000000001","v":1.0000000000000001E-9},{"$f":"MIN(B35:G35)+0.000000001","v":1.0000000000000001E-9},{"$f":"AVERAGE(B35:G35)+0.000000001","v":1.0000000000000001E-9},{"$f":"(100-(((I35)/H35)*100)+(100-(((J35)/H35)*100)+(100-(((I35)/J35)*100))))/3","v":0}]
["% 'Heifer' Score",{"$f":"IF(B35/(B34+0.0000000001)*100<101,B35/(B34+0.0000000001)*100,100)","v":0},{"$f":"IF(C35/(C34+0.0000000001)*100<101,C35/(C34+0.0000000001)*100,100)","v":0},0,0,0,0]
[]
["Recurrence"]
["Recurrence Score",{"$f":"Inputs!V48","v":"NO DATA"},{"$f":"Inputs!W48","v":"NO DATA"},{"$f":"Inputs!X48","v":"NO DATA"},{"$f":"Inputs!Y48","v":"NO DATA"},{"$f":"Inputs!Z48","v":"NO DATA"},{"$f":"Inputs!AA48","v":"NO DATA"}]
["% Recurrence Score",{"$f":"IF(B39=\"NO DATA\",\"NO DATA\",B39/2*100)","v":"NO DATA"},{"$f":"IF(C39=\"NO DATA\",\"NO DATA\",C39/2*100)","v":"NO DATA"},"NO DATA","NO DATA","NO DATA","NO DATA"]

{"sheet":"Diagnosis","index":9,"n_rows":18,"n_cols":13,"rows_kept":18,"cut":false,"hidden":true,"merged":[]}
[]
[null,null,"Current Quarter","Quarter -1","Quarter -2","Quarter -3","Quarter -4","Quarter -5",null,"Current","Recent","Historic","Seasonality"]
[null,"Contagious Issues",{"$f":"Calculations!B13","v":0},{"$f":"Calculations!C13","v":0},{"$f":"Calculations!D13","v":0},{"$f":"Calculations!E13","v":0},{"$f":"Calculations!F13","v":0},{"$f":"Calculations!G13","v":0},null,{"$f":"C3","v":0},{"$f":"MAX(C3:F3)","v":0},{"$f":"MAX(G3:H3)","v":0},{"$f":"Calculations!K12","v":0}]
[null,"Dry Period Environmental Issues",{"$f":"Calculations!B21","v":0},{"$f":"Calculations!C21","v":0},{"$f":"Calculations!D21","v":0},{"$f":"Calculations!E21","v":0},{"$f":"Calculations!F21","v":0},{"$f":"Calculations!G21","v":0},null,{"$f":"C4","v":0},{"$f":"MAX(C4:F4)","v":0},{"$f":"MAX(G4:H4)","v":0},{"$f":"Calculations!K20","v":0}]
[null,"Lactating Period Environmental Issues",{"$f":"Calculations!B29","v":0},{"$f":"Calculations!C29","v":0},{"$f":"Calculations!D29","v":0},{"$f":"Calculations!E29","v":0},{"$f":"Calculations!F29","v":0},{"$f":"Calculations!G29","v":0},null,{"$f":"C5","v":0},{"$f":"MAX(C5:F5)","v":0},{"$f":"MAX(G5:H5)","v":0},{"$f":"Calculations!K28","v":0}]
[null,"Specific Heifer Management Issues",{"$f":"Calculations!B36","v":0},{"$f":"Calculations!C36","v":0},{"$f":"Calculations!D36","v":0},{"$f":"Calculations!E36","v":0},{"$f":"Calculations!F36","v":0},{"$f":"Calculations!G36","v":0},null,{"$f":"C6","v":0},{"$f":"MAX(C6:F6)","v":0},{"$f":"MAX(G6:H6)","v":0},{"$f":"Calculations!K35","v":0}]
[null,"Clinical Mastitis Recurrence Issues",{"$f":"Calculations!B40","v":"NO DATA"},{"$f":"Calculations!C40","v":"NO DATA"},{"$f":"Calculations!D40","v":"NO DATA"},{"$f":"Calculations!E40","v":"NO DATA"},{"$f":"Calculations!F40","v":"NO DATA"},{"$f":"Calculations!G40","v":"NO DATA"},null,{"$f":"C7","v":"NO DATA"},{"$f":"IF(AND(C7=\"NO DATA\",D7=\"NO DATA\",E7=\"NO DATA\",F7=\"NO DATA\"),\"NO DATA\",MAX(C7:F7))","v":"NO DATA"},{"$f":"IF(AND(G7=\"NO DATA\",H7=\"NO DATA\"),\"NO DATA\",MAX(G7:H7))","v":"NO DATA"}]
[]
[]
[null,"Notes:"]
[null,"Current = This quarter"]
[null,"Recent = This year"]
[null,"Historic = > 1 year, but < 18 months"]
[]
[]
[null,"error check for e.g. no data or calc error"]
[null,"with warning for Dx"]
[null,"small n warning?","although won't know what n is specifically?"]

{"sheet":"Initial Design","index":10,"n_rows":30,"n_cols":5,"rows_kept":30,"cut":false,"hidden":true,"merged":[]}
["All in the last 1/4","Cows","Heifers","Source (Cows)"]
["BMSCC (,000 cells/ml)",null,null,"Herd Mastitis Summary"]
["% Chronic",null,null,"Herd Mastitis Summary"]
["% >200K",null,null,"Herd Mastitis Summary"]
["Lactation New IMI (%)",null,null,"Herd Mastitis Summary"]
["Dry Period New IMI (%)",null,{"$f":"B28","v":20},"Herd Mastitis Summary"]
["'Apparent' Dry Period Cure (%)",null,null,"Herd Mastitis Summary"]
[]
["Dry Period Origin CM Rate  (in 12)",null,{"$f":"B22","v":1.3333333333333333},"Herd Mastitis Summary"]
["Lactating Period Origin CM Rate  (in 12)",null,null,"Herd Mastitis Summary"]
["Qrt CMIR (/100 cows/year)",null,null,"Herd Mastitis Summary"]
["Cow CMIR (/100 cows/year)",null,null,"Herd Mastitis Summary"]
[]
[]
["Clinical Mastitis Cure Rate",null,null,"12 month rolling 1st clinical case cure rate"]
[]
[null,"Risk","Rate","Risk Proportion","Adjusted Rate"]
["Heifer DP  (Month 1)",12,1,{"$f":"B18/B$21","v":0.33333333333333331},{"$f":"C18*D18","v":0.33333333333333331}]
["Heifer DP  (Month 2)",12,1,{"$f":"B19/B$21","v":0.33333333333333331},{"$f":"C19*D19","v":0.33333333333333331}]
["Heifer DP  (Month 3)",12,2,{"$f":"B20/B$21","v":0.33333333333333331},{"$f":"C20*D20","v":0.66666666666666663}]
[null,{"$f":"SUM(B18:B20)","v":36}]
["Calculated Rate",{"$f":"E18+E19+E20","v":1.3333333333333333}]
[null,"No 1st Reorded","No Infected"]
["Heifer DPIMI (Month 1)",10,1]
["Heifer DPIMI (Month 2)",10,2]
["Heifer DPIMI (Month 3)",10,3]
[null,{"$f":"SUM(B24:B26)","v":30},{"$f":"SUM(C24:C26)","v":6}]
["Heifer DPIMI Rate (Qrt)",{"$f":"C27/B27*100","v":20}]
[]
["X 6 qrts"]

{"sheet":"3Reports","index":11,"n_rows":93,"n_cols":34,"rows_kept":93,"cut":false,"hidden":false,"merged":[[67,6,67,7],[67,8,67,9],[83,2,83,4],[84,2,84,4],[85,2,85,4],[6,0,7,0],[11,0,14,0],[87,2,87,4],[67,2,67,3],[67,4,67,5],[86,2,86,4]]}
[]
[null,null,null,null,null,null,"Farm ID",{"$f":"IF(FrontPage!C3<>\"\",FrontPage!C3,\"\")","v":""}]
[null,"  Herd Pattern Analysis Tool",null,null,null,null,"1. Herd data/ mastitis figures"]
[null,{"$f":"IF(FrontPage!C3<>\"\",FrontPage!C3,\"\")","v":""},{"$f":"FrontPage!D3","v":"00:00:00"},{"$f":"FrontPage!E3","v":"00:00:00"},{"$f":"FrontPage!F3","v":"00:00:00"},{"$f":"FrontPage!G3","v":"00:00:00"},{"$f":"FrontPage!H3","v":"00:00:00"},{"$f":"FrontPage!I3","v":"00:00:00"},{"$f":"IF(FrontPage!J3<>\"\",FrontPage!J3,\"\")","v":""}]
[null,{"$f":"FrontPage!C4","v":"All cows - lactations 1+"},{"$f":"FrontPage!D4","v":"Qtr  0"},{"$f":"FrontPage!E4","v":"Qtr  -1"},{"$f":"FrontPage!F4","v":"Qtr  -2"},{"$f":"FrontPage!G4","v":"Qtr  -3"},{"$f":"FrontPage!H4","v":"Qtr  -4"},{"$f":"FrontPage!I4","v":"Qtr  -5"},{"$f":"IF(FrontPage!J4<>\"\",FrontPage!J4,\"\")","v":"Target"}]
[null,{"$f":"FrontPage!C5","v":"BMSCC (,000 cells/ml)"},{"$f":"IF(FrontPage!D5<>\"\",FrontPage!D5,\"\")","v":""},{"$f":"IF(FrontPage!E5<>\"\",FrontPage!E5,\"\")","v":""},{"$f":"IF(FrontPage!F5<>\"\",FrontPage!F5,\"\")","v":""},{"$f":"IF(FrontPage!G5<>\"\",FrontPage!G5,\"\")","v":""},{"$f":"IF(FrontPage!H5<>\"\",FrontPage!H5,\"\")","v":""},{"$f":"IF(FrontPage!I5<>\"\",FrontPage!I5,\"\")","v":""},{"$f":"IF(FrontPage!J5<>\"\",FrontPage!J5,\"\")","v":""}]
[{"$f":"FrontPage!B5","v":"SCC"},{"$f":"FrontPage!C6","v":"% Chronic"},{"$f":"IF(FrontPage!D6<>\"\",FrontPage!D6,\"\")","v":""},{"$f":"IF(FrontPage!E6<>\"\",FrontPage!E6,\"\")","v":""},{"$f":"IF(FrontPage!F6<>\"\",FrontPage!F6,\"\")","v":""},{"$f":"IF(FrontPage!G6<>\"\",FrontPage!G6,\"\")","v":""},{"$f":"IF(FrontPage!H6<>\"\",FrontPage!H6,\"\")","v":""},{"$f":"IF(FrontPage!I6<>\"\",FrontPage!I6,\"\")","v":""},{"$f":"IF(FrontPage!J6<>\"\",FrontPage!J6,\"\")","v":"<5"}]
[null,{"$f":"FrontPage!C7","v":"% >200K"},{"$f":"IF(FrontPage!D7<>\"\",FrontPage!D7,\"\")","v":""},{"$f":"IF(FrontPage!E7<>\"\",FrontPage!E7,\"\")","v":""},{"$f":"IF(FrontPage!F7<>\"\",FrontPage!F7,\"\")","v":""},{"$f":"IF(FrontPage!G7<>\"\",FrontPage!G7,\"\")","v":""},{"$f":"IF(FrontPage!H7<>\"\",FrontPage!H7,\"\")","v":""},{"$f":"IF(FrontPage!I7<>\"\",FrontPage!I7,\"\")","v":""},{"$f":"IF(FrontPage!J7<>\"\",FrontPage!J7,\"\")","v":"<20"}]
[null,{"$f":"FrontPage!C8","v":"Lactation New IMI (%)"},{"$f":"IF(FrontPage!D8<>\"\",FrontPage!D8,\"\")","v":""},{"$f":"IF(FrontPage!E8<>\"\",FrontPage!E8,\"\")","v":""},{"$f":"IF(FrontPage!F8<>\"\",FrontPage!F8,\"\")","v":""},{"$f":"IF(FrontPage!G8<>\"\",FrontPage!G8,\"\")","v":""},{"$f":"IF(FrontPage!H8<>\"\",FrontPage!H8,\"\")","v":""},{"$f":"IF(FrontPage!I8<>\"\",FrontPage!I8,\"\")","v":""},{"$f":"IF(FrontPage!J8<>\"\",FrontPage!J8,\"\")","v":"<5"}]
[null,{"$f":"FrontPage!C9","v":"Dry Period New IMI (%)"},{"$f":"IF(FrontPage!D9<>\"\",FrontPage!D9,\"\")","v":""},{"$f":"IF(FrontPage!E9<>\"\",FrontPage!E9,\"\")","v":""},{"$f":"IF(FrontPage!F9<>\"\",FrontPage!F9,\"\")","v":""},{"$f":"IF(FrontPage!G9<>\"\",FrontPage!G9,\"\")","v":""},{"$f":"IF(FrontPage!H9<>\"\",FrontPage!H9,\"\")","v":""},{"$f":"IF(FrontPage!I9<>\"\",FrontPage!I9,\"\")","v":""},{"$f":"IF(FrontPage!J9<>\"\",FrontPage!J9,\"\")","v":"<10"}]
[null,{"$f":"FrontPage!C10","v":"'Apparent' Dry Period Cure (%)"},{"$f":"IF(FrontPage!D10<>\"\",FrontPage!D10,\"\")","v":""},{"$f":"IF(FrontPage!E10<>\"\",FrontPage!E10,\"\")","v":""},{"$f":"IF(FrontPage!F10<>\"\",FrontPage!F10,\"\")","v":""},{"$f":"IF(FrontPage!G10<>\"\",FrontPage!G10,\"\")","v":""},{"$f":"IF(FrontPage!H10<>\"\",FrontPage!H10,\"\")","v":""},{"$f":"IF(FrontPage!I10<>\"\",FrontPage!I10,\"\")","v":""},{"$f":"IF(FrontPage!J10<>\"\",FrontPage!J10,\"\")","v":">85"}]
[{"$f":"FrontPage!B11","v":"Mastitis"},{"$f":"FrontPage!C11","v":"Dry Period Origin CM Rate  (in 12)"},{"$f":"IF(FrontPage!D11<>\"\",FrontPage!D11,\"\")","v":""},{"$f":"IF(FrontPage!E11<>\"\",FrontPage!E11,\"\")","v":""},{"$f":"IF(FrontPage!F11<>\"\",FrontPage!F11,\"\")","v":""},{"$f":"IF(FrontPage!G11<>\"\",FrontPage!G11,\"\")","v":""},{"$f":"IF(FrontPage!H11<>\"\",FrontPage!H11,\"\")","v":""},{"$f":"IF(FrontPage!I11<>\"\",FrontPage!I11,\"\")","v":""},{"$f":"IF(FrontPage!J11<>\"\",FrontPage!J11,\"\")","v":"<1"}]
[null,{"$f":"FrontPage!C12","v":"Lactating Period Origin CM Rate  (in 12)"},{"$f":"IF(FrontPage!D12<>\"\",FrontPage!D12,\"\")","v":""},{"$f":"IF(FrontPage!E12<>\"\",FrontPage!E12,\"\")","v":""},{"$f":"IF(FrontPage!F12<>\"\",FrontPage!F12,\"\")","v":""},{"$f":"IF(FrontPage!G12<>\"\",FrontPage!G12,\"\")","v":""},{"$f":"IF(FrontPage!H12<>\"\",FrontPage!H12,\"\")","v":""},{"$f":"IF(FrontPage!I12<>\"\",FrontPage!I12,\"\")","v":""},{"$f":"IF(FrontPage!J12<>\"\",FrontPage!J12,\"\")","v":"<2"}]
[null,{"$f":"FrontPage!C13","v":"Qrt CMIR (/100 cows/year)"},{"$f":"IF(FrontPage!D13<>\"\",FrontPage!D13,\"\")","v":""},{"$f":"IF(FrontPage!E13<>\"\",FrontPage!E13,\"\")","v":""},{"$f":"IF(FrontPage!F13<>\"\",FrontPage!F13,\"\")","v":""},{"$f":"IF(FrontPage!G13<>\"\",FrontPage!G13,\"\")","v":""},{"$f":"IF(FrontPage!H13<>\"\",FrontPage!H13,\"\")","v":""},{"$f":"IF(FrontPage!I13<>\"\",FrontPage!I13,\"\")","v":""},{"$f":"IF(FrontPage!J13<>\"\",FrontPage!J13,\"\")","v":"<25"}]
[null,{"$f":"FrontPage!C14","v":"Cow CMIR (/100 cows/year)"},{"$f":"IF(FrontPage!D14<>\"\",FrontPage!D14,\"\")","v":""},{"$f":"IF(FrontPage!E14<>\"\",FrontPage!E14,\"\")","v":""},{"$f":"IF(FrontPage!F14<>\"\",FrontPage!F14,\"\")","v":""},{"$f":"IF(FrontPage!G14<>\"\",FrontPage!G14,\"\")","v":""},{"$f":"IF(FrontPage!H14<>\"\",FrontPage!H14,\"\")","v":""},{"$f":"IF(FrontPage!I14<>\"\",FrontPage!I14,\"\")","v":""},{"$f":"IF(FrontPage!J14<>\"\",FrontPage!J14,\"\")","v":"<30"}]
[null,{"$f":"FrontPage!C15","v":"Clinical Mastitis Cure Rate (1st Case)"},{"$f":"IF(FrontPage!D15<>\"\",FrontPage!D15,\"\")","v":""},{"$f":"IF(FrontPage!E15<>\"\",FrontPage!E15,\"\")","v":""},{"$f":"IF(FrontPage!F15<>\"\",FrontPage!F15,\"\")","v":""},{"$f":"IF(FrontPage!G15<>\"\",FrontPage!G15,\"\")","v":""},{"$f":"IF(FrontPage!H15<>\"\",FrontPage!H15,\"\")","v":""},{"$f":"IF(FrontPage!I15<>\"\",FrontPage!I15,\"\")","v":""},{"$f":"IF(FrontPage!J15<>\"\",FrontPage!J15,\"\")","v":""}]
[null,{"$f":"FrontPage!C16","v":"Heifers - lactation 1 only"}]
[null,{"$f":"FrontPage!C17","v":"Dry period new IMI (%)"},{"$f":"IF(FrontPage!D17<>\"\",FrontPage!D17,\"\")","v":""},{"$f":"IF(FrontPage!E17<>\"\",FrontPage!E17,\"\")","v":""},{"$f":"IF(FrontPage!F17<>\"\",FrontPage!F17,\"\")","v":""},{"$f":"IF(FrontPage!G17<>\"\",FrontPage!G17,\"\")","v":""},{"$f":"IF(FrontPage!H17<>\"\",FrontPage!H17,\"\")","v":""},{"$f":"IF(FrontPage!I17<>\"\",FrontPage!I17,\"\")","v":""},{"$f":"IF(FrontPage!J17<>\"\",FrontPage!J17,\"\")","v":"<10"}]
[null,{"$f":"FrontPage!C18","v":"Dry Period Origin CM Rate  (in 12)"},{"$f":"IF(FrontPage!D18<>\"\",FrontPage!D18,\"\")","v":""},{"$f":"IF(FrontPage!E18<>\"\",FrontPage!E18,\"\")","v":""},{"$f":"IF(FrontPage!F18<>\"\",FrontPage!F18,\"\")","v":""},{"$f":"IF(FrontPage!G18<>\"\",FrontPage!G18,\"\")","v":""},{"$f":"IF(FrontPage!H18<>\"\",FrontPage!H18,\"\")","v":""},{"$f":"IF(FrontPage!I18<>\"\",FrontPage!I18,\"\")","v":""},{"$f":"IF(FrontPage!J18<>\"\",FrontPage!J18,\"\")","v":"<1"}]
[null,null,{"$f":"FrontPage!D19","v":"BMSCC "},{"$f":"FrontPage!E19","v":"Bulk Milk Somatic Cell Count (CALCULATED from cow SCCs and yields)"}]
[null,null,{"$f":"FrontPage!D20","v":"IMI"},{"$f":"FrontPage!E20","v":"Intramammary infections"},null,null,{"$f":"FrontPage!H20","v":"CM Clinical mastitis"}]
[null,null,{"$f":"FrontPage!D21","v":"CMIR"},{"$f":"FrontPage!E21","v":"Clinical mastitis infection rate"}]
[]
[]
[]
[null,null,null,null,null,"Mastitis Pattern Analysis Tool V 2.1"]
[]
[]
[]
[]
[]
[]
[null,null,null,null,null,null,"Farm ID",{"$f":"IF(FrontPage!C3<>\"\",FrontPage!C3,\"\")","v":""}]
[]
[null,"  Herd Pattern Analysis Tool",null,null,null,null,"2. Data Quality "]
[]
[]
[null,{"$f":"IF(FrontPage!C3<>\"\",FrontPage!C3,\"\")","v":""}]
[null,null,{"$f":"DataQuality!D4","v":"2020-12-31"},{"$f":"DataQuality!E4","v":"2020-09-30"},{"$f":"DataQuality!F4","v":"2020-06-30"},{"$f":"DataQuality!G4","v":"2020-03-31"},{"$f":"DataQuality!H4","v":"2019-12-31"},{"$f":"DataQuality!I4","v":"2019-09-30"}]
[null,{"$f":"DataQuality!C5","v":"Data Quality Assessment"},{"$f":"DataQuality!D5","v":"Qtr  0"},{"$f":"DataQuality!E5","v":"Qtr  -1"},{"$f":"DataQuality!F5","v":"Qtr  -2"},{"$f":"DataQuality!G5","v":"Qtr  -3"},{"$f":"DataQuality!H5","v":"Qtr  -4"},{"$f":"DataQuality!I5","v":"Qtr  -5"}]
[null,{"$f":"DataQuality!C6","v":"Number of Recordings"},{"$f":"DataQuality!D6","v":0},{"$f":"DataQuality!E6","v":0},{"$f":"DataQuality!F6","v":0},{"$f":"DataQuality!G6","v":0},{"$f":"DataQuality!H6","v":0},{"$f":"DataQuality!I6","v":0}]
[null,{"$f":"DataQuality!C7","v":"Number of Calvings (All Cows)"},{"$f":"DataQuality!D7","v":0},{"$f":"DataQuality!E7","v":0},{"$f":"DataQuality!F7","v":0},{"$f":"DataQuality!G7","v":0},{"$f":"DataQuality!H7","v":0},{"$f":"DataQuality!I7","v":0}]
[null,{"$f":"DataQuality!C8","v":"Number of Calvings (Heifers)"},{"$f":"DataQuality!D8","v":0},{"$f":"DataQuality!E8","v":0},{"$f":"DataQuality!F8","v":0},{"$f":"DataQuality!G8","v":0},{"$f":"DataQuality!H8","v":0},{"$f":"DataQuality!I8","v":0}]
[null,{"$f":"DataQuality!C9","v":"Incidence Rate of Clinical Mastitis"},{"$f":"DataQuality!D9","v":0},{"$f":"DataQuality!E9","v":0},{"$f":"DataQuality!F9","v":0},{"$f":"DataQuality!G9","v":0},{"$f":"DataQuality!H9","v":0},{"$f":"DataQuality!I9","v":0}]
[null,{"$f":"DataQuality!C10","v":"(cases/100 cows/year equivalent)"}]
[null,{"$f":"DataQuality!C11","v":"Somatic Cell Count Data"},{"$f":"DataQuality!D11","v":"Insufficient SCC data for robust interpretation"}]
[null,{"$f":"DataQuality!C12","v":"Number of Calvings (All Cows)"},{"$f":"DataQuality!D12","v":"Low numbers of cows calving - interpret with great care"}]
[null,{"$f":"DataQuality!C13","v":"Number of Calvings (Heifers)"},{"$f":"DataQuality!D13","v":"Low numbers of heifers calving - interpret with great care"}]
[null,{"$f":"DataQuality!C14","v":"Clinical Mastitis Data"},{"$f":"DataQuality!D14","v":"Insufficient data for robust interpretation"}]
[]
[null,null,{"$f":"DataQuality!D16","v":"BULK MILK SCC VALUE(S) REQUIRED"}]
[]
[]
[]
[null,null,null,null,null,"Mastitis Pattern Analysis Tool V 2.1"]
[]
[]
[]
[]
[]
[]
[]
[null,null,null,null,null,null,null,null,null,null,null,null,null,null,null,null,null,null,null,null,"category","Cont>75","EDP>75","EL>75","#>75","Max","ContMax","EDPMax","ELMax","MaxCat","SingPlur",null,"Cat","FullText"]
[null,null,null,null,null,null,"Farm ID",{"$f":"IF(FrontPage!C3<>\"\",FrontPage!C3,\"\")","v":""},null,null,null,null,null,null,null,null,null,null,{"$f":"VLOOKUP(U64,AG64:AH70,2,FALSE)","v":"contagious, EL and EDP"},"Curr",{"$f":"IF(Y64>=1,CONCATENATE(V64,W64,X64),AD64)","v":"CDL"},{"$f":"IF(C69>=75,\"C\",\"\")","v":""},{"$f":"IF(C70>=75,\"D\",\"\")","v":""},{"$f":"IF(C71>=75,\"L\",\"\")","v":""},{"$f":"COUNTIF(C69:C71,\">=75\")","v":0},{"$f":"MAX(C69:C71)","v":0},{"$f":"IF(C69=Z64,\"C\",\"\")","v":"C"},{"$f":"IF(Z64=C70,\"D\",\"\")","v":"D"},{"$f":"IF(Z64=C71,\"L\",\"\")","v":"L"},{"$f":"CONCATENATE(AA64,AB64,AC64)","v":"CDL"},{"$f":"IF(LEN(U64)=1,1,2)","v":2},null,"C","contagious"]
[null,null,null,null,null,null,null,null,null,null,null,null,null,null,null,null,null,null,{"$f":"VLOOKUP(U65,AG64:AH70,2,FALSE)","v":"contagious, EL and EDP"},"Recent",{"$f":"IF(Y65>=1,CONCATENATE(V65,W65,X65),AD65)","v":"CDL"},{"$f":"IF(E69>=75,\"C\",\"\")","v":""},{"$f":"IF(E70>=75,\"D\",\"\")","v":""},{"$f":"IF(E71>=75,\"L\",\"\")","v":""},{"$f":"COUNTIF(E69:E71,\">=75\")","v":0},{"$f":"MAX(E69:E71)","v":0},{"$f":"IF(E69=Z65,\"C\",\"\")","v":"C"},{"$f":"IF(Z65=E70,\"D\",\"\")","v":"D"},{"$f":"IF(Z65=E71,\"L\",\"\")","v":"L"},{"$f":"CONCATENATE(AA65,AB65,AC65)","v":"CDL"},{"$f":"IF(LEN(U65)=1,1,2)","v":2},null,"D","EDP"]
[null,"  Herd Pattern Analysis Tool",null,null,null,null,"3. Mastitis Pattern",null,null,null,null,null,null,null,null,null,null,null,null,"Heifer",{"$f":"IF(C72>=75,1,0)","v":0},null,null,null,null,null,null,null,null,null,null,null,"L","EL"]
[null,{"$f":"'CSV-INPUT'!B1","v":"2020-12-31"},null,"Last 3 months",null,"Last 12 months",null,"12 - 18 months ago",null,null,null,null,null,null,null,null,null,null,null,"Recurr",{"$f":"IF(C73=\"NO DATA\",\"NO DATA\",IF(C73>=75,1,0))","v":"NO DATA"},null,null,null,null,null,null,null,null,null,null,null,"CD","contagious and EDP"]
[null,null,"Current",null,"Recent",null,"Historic",null,"Seasonality",null,null,null,null,null,null,null,null,null,null,"Seas",{"$f":"IF(MAX(I69:I72)>=75,1,0)","v":0},null,null,null,null,null,null,null,null,null,null,null,"CL","contagious and EL"]
[null,"Contagious",{"$f":"Diagnosis1!D7","v":0},{"$f":"C69","v":0},{"$f":"Diagnosis1!F7","v":0},{"$f":"E69","v":0},{"$f":"Diagnosis1!H7","v":0},{"$f":"G69","v":0},{"$f":"Diagnosis1!J7","v":0},{"$f":"I69","v":0},null,null,null,null,null,null,null,null,null,null,null,null,null,null,null,null,null,null,null,null,null,null,"CDL","contagious, EL and EDP"]
[null,"Environmental Dry Period ",{"$f":"Diagnosis1!D8","v":0},{"$f":"C70","v":0},{"$f":"Diagnosis1!F8","v":0},0,{"$f":"Diagnosis1!H8","v":0},{"$f":"G70","v":0},{"$f":"Diagnosis1!J8","v":0},{"$f":"I70","v":0},null,null,null,null,null,null,null,null,null,null,null,null,null,null,null,null,null,null,null,null,null,null,"DL","EL and EDP"]
[null,"Environmental Lactation",{"$f":"Diagnosis1!D9","v":0},0,{"$f":"Diagnosis1!F9","v":0},0,{"$f":"Diagnosis1!H9","v":0},0,{"$f":"Diagnosis1!J9","v":0},0]
[null,"Specific Heifer Management",{"$f":"Diagnosis1!D10","v":0},0,{"$f":"Diagnosis1!F10","v":0},0,{"$f":"Diagnosis1!H10","v":0},0,{"$f":"Diagnosis1!J10","v":0},0]
[null,"Clinical Mastitis Recurrence",{"$f":"Diagnosis1!D11","v":"NO DATA"},"NO DATA",{"$f":"Diagnosis1!F11","v":"NO DATA"},"NO DATA",{"$f":"Diagnosis1!H11","v":"NO DATA"},"NO DATA"]
[null,null,"Numbers indicate the relative importance of different patterns on a scale of 1 to 100"]
[null,"Key points"]
[null,{"$f":"\"Predominant current issue\" & IF(AE64=2,\"s are \",\" is \") & S64","v":"Predominant current issues are contagious, EL and EDP"}]
[null,{"$f":"\"Predominant recent issue\"&IF(AE65=2,\"s are \",\" is \")&S65","v":"Predominant recent issues are contagious, EL and EDP"}]
[null,{"$f":"\"Specific heifer management issues \"&IF(U66=1,\"\",\"do not \")&\"currently appear to be important\"","v":"Specific heifer management issues do not currently appear to be important"},null,null,null,null,null,{"$f":"IF(DataQuality!Q10>0,\"Small numbers/missing info mean that at least\",\"\")","v":"Small numbers/missing info mean that at least"}]
[null,{"$f":"IF(U67=\"NO DATA\",\"TAKE CARE THIS DATASET LACKS ROBUST CLINICAL MASTITIS DATA\",\"Recurrent clinical mastitis is \"&IF(U67=1,\"\",\"not\")&\" currently an important feature\")","v":"TAKE CARE THIS DATASET LACKS ROBUST CLINICAL MASTITIS DATA"},null,null,null,null,null,{"$f":"IF(DataQuality!Q10=1,\"one measure above should be interpreted with caution.\", \"one measure above may be unreliable.\")","v":"one measure above should be interpreted with caution."}]
[null,{"$f":"\"There are \"&IF(U68=1,\"\",\"no \")&\"clear important seasonal patterns\"","v":"There are no clear important seasonal patterns"}]
[]
[null,{"$f":"F82","v":"00:00:00"},null,null,null,{"$f":"FrontPage!D3","v":"00:00:00"},{"$f":"FrontPage!E3","v":"00:00:00"},{"$f":"FrontPage!F3","v":"00:00:00"},{"$f":"FrontPage!G3","v":"00:00:00"},{"$f":"FrontPage!H3","v":"00:00:00"},{"$f":"FrontPage!I3","v":"00:00:00"}]
[null,{"$f":"Diagnosis2!J6","v":"historic…………...trend……………..current"},null,null,null,"current","qtr  -1","qtr  -2","qtr  -3","qtr  -4","qtr  -5"]
[null,null,"Contagious",null,null,{"$f":"Diagnosis2!C7","v":0},{"$f":"Diagnosis2!D7","v":0},{"$f":"Diagnosis2!E7","v":0},{"$f":"Diagnosis2!F7","v":0},{"$f":"Diagnosis2!G7","v":0},{"$f":"Diagnosis2!H7","v":0}]
[null,null,"Environmental Dry Period",null,null,{"$f":"Diagnosis2!C8","v":0},{"$f":"Diagnosis2!D8","v":0},{"$f":"Diagnosis2!E8","v":0},{"$f":"Diagnosis2!F8","v":0},{"$f":"Diagnosis2!G8","v":0},{"$f":"Diagnosis2!H8","v":0}]
[null,null,"Environmental Lact'n",null,null,{"$f":"Diagnosis2!C9","v":0},{"$f":"Diagnosis2!D9","v":0},{"$f":"Diagnosis2!E9","v":0},{"$f":"Diagnosis2!F9","v":0},{"$f":"Diagnosis2!G9","v":0},{"$f":"Diagnosis2!H9","v":0}]
[null,null,"Heifer Management",null,null,{"$f":"Diagnosis2!C10","v":0},{"$f":"Diagnosis2!D10","v":0},{"$f":"Diagnosis2!E10","v":0},{"$f":"Diagnosis2!F10","v":0},{"$f":"Diagnosis2!G10","v":0},{"$f":"Diagnosis2!H10","v":0}]
[null,null,"Clinical Mast Recurrence",null,null,{"$f":"Diagnosis2!C11","v":"NO DATA"},{"$f":"Diagnosis2!D11","v":"NO DATA"},{"$f":"Diagnosis2!E11","v":"NO DATA"},{"$f":"Diagnosis2!F11","v":"NO DATA"},{"$f":"Diagnosis2!G11","v":"NO DATA"},{"$f":"Diagnosis2!H11","v":"NO DATA"}]
[]
[]
[]
[]
[null,null,null,null,null,"Mastitis Pattern Analysis Tool V 2.1"]

{"sheet":"Glossary","index":12,"n_rows":98,"n_cols":1,"rows_kept":98,"cut":false,"hidden":false,"merged":[]}
["INPUT PARAMETERS"]
["Input parameters - General"]
["There are 17 separate input parameters required for Somatic Cell Count (SCC) and Clinical Mastitis (CM) parameters"]
["Of these, 13 are required to be input by the advisor and four are calculated by the tool itself"]
["These 17 parameters are then input for six 3-month periods, meaning the auto diagnosis tool requires over 100 separate inputs to run effectively."]
["Input parameters - Somatic Cell Count (SCC) data"]
["Note 1: ALL parameters are averaged over all recordings in a three month period and are designed to be used for herds that are engaged in regular (i.e. MONTHLY) milk recording to gain maximum benefit from the output."]
["Note 2: ALL parameters are reported for the previous SIX quarters – i.e. the bulk milk SCC is averaged for the last three recordings (‘Current Quarter’), the three recordings before this (‘Quarter -1’), the three recordings before that (‘Quarter -2’) and so on. In this way, the SCC parameters input cover the previous 18 monthly recordings, allowing for seasonality (if present) to be evaluated. If not monthly recording, the average of the previous three recordings can still be used, but this will inevitably lead to a less ‘robust’ diagnosis."]
[]
["Bulk milk SCC (‘000/ml): The calculated herd average SCC at each milk recording"]
["% of the herd ‘chronic’: The % of cows in the herd that remain above a threshold of 200,000 cells/ml on more than one occasion in the last three recordings"]
["% of the herd >200,000 cells/ml: The % of cows in the herd that are above a threshold of 200,000 cells/ml at the milk recording"]
["Chronic: >200 ratio: The proportion of the cows >200,000 cells/ml that are chronic – calculated by the tool automatically"]
["Lactation New Intra Mammary Infection (IMI) Rate (%): The rate of new infection as measured by an increase in somatic cell count for lactating cows between successive milk recordings"]
["Dry Period New Intra Mammary Infection (IMI) Rate (%): The rate of new infection as measured by an increase in somatic cell count across the dry period (i.e. ‘low’ cell count at drying-off but ‘high’ cell count after calving)"]
["‘Apparent’ Dry Period Cure Rate (%): The rate of cure as measured by a decrease in somatic cell count across the dry period (i.e. ‘high’ cell count at drying-off but ‘low’ cell count after calving)"]
["‘Actual’ Dry Period Cure Rate (%): The sum of the dry period cure rate as measured by somatic cell count across the dry period and the dry period new infection rate"]
["Heifer Dry Period New Intra Mammary Infection (IMI) Rate (%): The rate of new infection as measured by somatic cell count for parity one cows (i.e. ‘high’ cell count at first milk recording)"]
[]
["Input parameters - Clinical Mastitis (CM) data"]
["Note 1: ALL parameters are averaged over THREE months and are designed to be used for herds that report ALL cases of clinical mastitis detected in the parlour (whether treated or not) to gain maximum benefit from the output."]
["Note 2: ALL parameters are reported for the previous SIX quarters – i.e. the cow clinical mastitis incidence rate is averaged for the last three months (‘Current Quarter’), the three months before this (‘Quarter -1’), the three months before that (‘Quarter -2’) and so on. In this way, the CM parameters input cover the previous 18 months, allowing for seasonality (if present) to be evaluated. If herds are not reporting clinical mastitis cases regularly or not reporting cases fully this will inevitably lead to a less ‘robust’ diagnosis."]
[]
["Dry Period Origin CM Rate (in 12): The proportion of cows affected with a new (first or ‘index’) case of clinical mastitis within 30 days of calving, out of every 12 cows that are ‘at-risk’ (i.e. cows that are eligible)"]
["Lactating Period Origin CM Rate (in 12): The proportion of cows affected with a new (first or ‘index’) case of clinical mastitis after 30 days of lactation, out of every 12 cows that are ‘at-risk’ (i.e. cows that are eligible)"]
["Dry Period Origin Ratio: The ratio of new (first or ‘index’) cases that are attributable to the dry period, expressed as a proportion of all new cases – calculated by the tool automatically"]
["Quarter CM Incidence Rate (/100 cows/year): The incidence rate of all quarter cases of clinical mastitis expressed as a incidence rate per 100 cows/year"]
["Cow CM Incidence Rate (/100 cows/year): The incidence rate of all cow cases of clinical mastitis expressed as a incidence rate per 100 cows/year"]
["Clinical Mastitis Cure Rate (1st Case): The proportion of new (first or ‘index’) cases that are cured as measured by non-recurrence of clinical mastitis and a reduction in somatic cell count"]
["Clinical Mastitis Recurrence Factor: The total number of new cases expressed as a proportion of the all clinical mastitis case rate to evaluate the impact of clinical mastitis recurrence – calculated by the tool automatically"]
["Heifer Dry Period Origin CM Rate (in 12): The proportion of parity one cows affected with a new (first or ‘index’) case of clinical mastitis within 30 days of calving, out of every 12 parity one cows that are ‘at-risk’ (i.e. parity one cows that are eligible)"]
[]
["OUTPUT PARAMETERS"]
["Output parameters - General"]
["The auto diagnosis tool presents a series of five outputs, calculated for each of the six 3-month time ‘blocks’ submitted"]
["A traffic-light system is used to present percentage output scores relative to likely importance, using <50% (‘green’, less important), 51-74% (‘amber’, important) and >74% (‘red’, very important)."]
["The five outputs are summarised for the ‘Current’ period, the ‘Recent’ period and the ‘Historic’ period, alongside a fourth output period to describe the relative importance of seasonality."]
[]
["Output parameters - Specific"]
["Contagious Issues: The percentage ‘score’ summarising the relative importance of contagious mastitis on farm, calculated from the numerical scores attributed to appropriate ‘contagious’ parameters (e.g. a poor actual dry period cure rate from the SCC inputs would contribute points to the overall ‘contagious’ score)."]
["A very high score (75% or greater) should alert the advisor to a possible ‘Contagious Lactation/Contagious Dry Period’ herd diagnosis and prioritisation of control measures directed at reducing transmission of infection between cows during milking and optimising cure rate across the dry period should be considered."]
["Appropriate priorities depending on current herd management aimed at reducing transmission of infection between cows in lactation should include:"]
["Segregation of ‘infected’ cows as measured by SCC parameters during the milking process, either physically (e.g. different group) or ‘virtually’ (e.g. identification and disinfection of milking equipment after use on these cows)"]
["Optimisation of the pre-milking routine to include rapid identification of clinical mastitis and the application of pre-milking teat disinfection"]
["Optimisation of post-milking teat disinfection (PMTD) routine to include rapid application of PMTD product and excellent coverage"]
["Consider vaccination to reduce the rate of transmission"]
["Appropriate biosecurity measures, for example screening cows bought onto the unit using SCC, California Mastitis Test, previous whole lactation SCC records etc"]
[]
["Appropriate priorities depending on current herd management aimed at optimising cure of infected cows should include:"]
["The importance of antibiotic dry cow therapy (ADCT) for infected cows using an appropriate SCC threshold – for example, in a high cell count herd, using a low threshold and three consecutive monthly milk recordings to identify cows for treatment"]
["Reviewing treatment of clinical mastitis cases during lactation, particularly rapid identification and treatment of the first clinical case in lactation and the importance of extended intra-mammary therapy to improve the chance of cure"]
["Management of persistent infection (e.g. recurrent clinical mastitis, chronic high SCC cows) by drying-off infected quarters"]
["Culling decisions for persistently infected cows based on SCC and bacteriology data "]
[]
["Dry Period Environment Issues: The percentage ‘score’ summarising the relative importance of the dry period origin environmental mastitis on farm, calculated from the numerical scores attributed to appropriate ‘dry period’ parameters (e.g. an increased dry period new infection rate from the SCC inputs would contribute points to the overall ‘dry period’ score)."]
["A very high score (75% or greater) should alert the advisor to a possible ‘Environmental Dry Period’ herd diagnosis and prioritisation of control measures directed at reducing new infections from the environment to cows during the dry period and at calving."]
["Appropriate priorities depending on current herd management aimed at reducing transmission of infection from the environment during the dry period may include:"]
["The importance of optimising aseptic infusion of both antibiotic and non-antibiotic dry cow therapy to minimise the risk of new intra-mammary infection at the time of drying-off"]
["Consideration of environmental management for dry cow groups at pasture, e.g. spending no more than 2 weeks in any one area to prevent build-up of infection"]
["Consideration of environmental management for dry cow groups in cubicles, e.g. application of new, clean organic bedding daily"]
["Consideration of environmental management for dry cow groups in loose yards, e.g. completely cleaning out loose yards every 4 weeks"]
["The importance of loafing space and ventilation for dry cow groups managed indoors"]
["The importance of slurry management for housed dry cow groups, e.g. scraping passageways and feeding areas daily"]
["The importance of internal teat sealant alone in uninfected cows as measured by SCC"]
[]
["Lactating Period Environment Issues: The percentage ‘score’ summarising the relative importance of the lactating period origin environmental mastitis on farm, calculated from the numerical scores attributed to appropriate ‘lactating period’ parameters (e.g. an increased lactation new infection rate from the SCC inputs would contribute points to the overall ‘lactating period’ score)."]
["A very high score (75% or greater) should alert the advisor to a possible ‘Environmental Lactating Period’ herd diagnosis and prioritisation of control measures directed at reducing new infections from the environment to cows during the lactating period."]
["Appropriate priorities depending on current herd management aimed at reducing transmission of infection from the environment during lactation may include:"]
["Consideration of environmental management for lactating cow groups in cubicles, e.g. application of new, clean inorganic bedding every other day"]
["Consideration of environmental management for lactating cow groups in loose yards, e.g. application of new, clean straw bedding every day or twice daily in the face of an increased challenge"]
["Consideration of environmental management for lactating cow groups at pasture, e.g. spending no more than 2 weeks in any one area to prevent build-up of infection"]
["The importance of loafing space and ventilation for lactating cow groups managed indoors"]
["The importance of pre-milking teat disinfection"]
[]
["Specific Heifer Management Issues: The percentage ‘score’ summarising the relative importance of heifer mastitis on farm, calculated from the numerical scores attributed to appropriate ‘heifer’ parameters (e.g. an increased dry period infection rate from the SCC inputs would contribute points to the overall ‘heifer’ score)."]
["A very high score (75% or greater) should alert the advisor to a possible ‘Environmental Dry Period’ herd diagnosis and prioritisation of control measures directed at reducing new infections from the environment to heifers during the pre- calving period."]
["Appropriate priorities depending on current herd management aimed at reducing transmission of infection from the environment during the pre-calving period may include:"]
["Consideration of environmental management for heifer groups at pasture, e.g. spending no more than 2 weeks in any one area to prevent build-up of infection"]
["Consideration of environmental management for heifer groups in cubicles, e.g. application of new, clean organic bedding daily"]
["Consideration of environmental management for heifer groups in loose yards, e.g. completely cleaning out loose yards every 4 weeks"]
["The importance of loafing space and ventilation for pre-calving heifer groups managed indoors"]
["The importance of fly control for pre-calving heifers"]
[]
["Clinical Mastitis Recurrence Issues: The percentage ‘score’ summarising the relative importance of recurrent mastitis on farm, calculated from the numerical score attributed to the ‘recurrence’ parameter (i.e. an increased clinical mastitis recurrence factor from the CM inputs would contribute points to the overall ‘recurrence’ score)"]
["A very high score (75% or greater) would alert the advisor to both ‘Contagious’ and ‘Environmental’ herd diagnosis as both Gram-positive and Gram-negative pathogens are able to cause persistent intra-mammary infection during lactation. Prioritisation of control measures directed at optimising cure rate during the lactating period for new (first or ‘index’) cases of clinical mastitis are likely to involve management of the first clinical mastitis case in lactation."]
["Appropriate priorities depending on current herd management aimed at optimising cure of new (first or ‘index’) cases of clinical mastitis may include:"]
["Rapid identification of clinical mastitis during milking, e.g. fore-stripping or in-line mastitis detectors"]
["Aseptic collection of clinical mastitis samples, labelling and storage "]
["Submission of 10 clinical mastitis samples two or three times a year to a specialist laboratory to review aetiology"]
["Rapid treatment of new clinical mastitis cases with intra-mammary antibiotic"]
["Review of intra-mammary antibiotic treatment protocol with your veterinary surgeon"]
["Monitoring cure rates for new clinical mastitis cases using clinical and SCC outcomes"]
[]
["‘Current’ Score: The percentage score for the appropriate output parameter for the last three months only. A very high score alerts the advisor to a recent trend and an emergent issue in the output parameter of interest"]
["‘Recent’ Score: The percentage score for the appropriate output parameter for the last 12 months only. A very high score alerts the advisor to a relatively recent trend and a likely issue in the output parameter of interest"]
["‘Historic’ Score: The percentage score for the appropriate output parameter for the period 12-18 months ago only. A very high score alerts the advisor to an historic trend and whilst the issue with the output parameter of interest may have been important, this may not be the case currently."]
["‘Seasonality’ Score: The percentage score across the appropriate output parameters that describe seasonality for each of the four main outputs (contagious, dry period, lactating period and heifer management. For example, a high percentage ‘Seasonality’ score for lactation would indicate large variation in appropriate lactation parameters between each of the six 3-month time periods entered."]
["A very high score (75% or greater) should alert the advisor to an ‘Environmental’ herd diagnosis and prioritisation of control measures directed at reducing new infections from the environment at particular times of the year (e.g. winter housing, dry cow management in the summer etc.)"]

{"sheet":"Further Reading","index":13,"n_rows":32,"n_cols":1,"rows_kept":32,"cut":false,"hidden":false,"merged":[]}
["FURTHER READING"]
[]
["Bradley AJ, Green MJ. (2000) A study of the incidence and significance of intramammary enterobacterial infections acquired during the dry period. J Dairy Sci. Sep 83(9):1957-65."]
["Bradley A, Green M (2005) Use and interpretation of somatic cell count data in dairy cows. In Practice 27:310-315."]
["Bradley AJ, Breen JE and Green MJ (2007) Mastitis pattern analysis – a fresh look at the analysis of bovine mastitis: Part I – somatic cell count data. UK Vet Livestock 2007 12:7, 29-35"]
["Bradley AJ, Breen JE and Green MJ (2008) Mastitis pattern analysis – a fresh look at the analysis of bovine mastitis: Part 2 – clinical mastitis data. UK Vet Livestock 13:1, 30-35"]
["Green MJ, Green LE, Schukken YH, Bradley AJ, Peeler EJ, Barkema HW, de Haas Y, Collis VJ, Medley GF. (2004) Somatic cell count distributions during lactation predict clinical mastitis. J Dairy Sci. May 87(5):1256-64."]
[]
[]
[]
[]
[]
[]
[]
[]
[]
[]
[]
[]
[]
[]
[]
[]
[]
[]
[]
[]
[]
[]
[]
[]
["AHDB Dairy (2012) DairyCo Mastitis Control Plan 3 year report (2008-2012) https://dairy.ahdb.org.uk/resources-library/technical-information/health-welfare/dairyco-mastitis-control-plan-3-year-report-(2008-2012)/"]